Workbook

Sheet Example
A1: Input | AH1: Conv1
A2: 0.0 | B2: 0.0 | C2: 0.0 | D2: 0.0 | E2: 0.0 | F2: 0.0 | G2: 0.0 | H2: 0.0 | I2: 0.0 | J2: 0.0 | K2: 0.0 | L2: 0.0 | M2: 0.0 | N2: 0.0 | O2: 0.0 | P2: 0.0 | Q2: 0.0 | R2: 0.0 | S2: 0.0 | T2: 0.0 | U2: 0.0 | V2: 0.0 | W2: 0.0 | X2: 0.0 | Y2: 0.0 | Z2: 0.0 | AA2: 0.0 | AB2: 0.0
A3: 0.0 | B3: 0.0 | C3: 0.0 | D3: 0.0 | E3: 0.0 | F3: 0.0 | G3: 0.0 | H3: 0.0 | I3: 0.0 | J3: 0.0 | K3: 0.0 | L3: 0.0 | M3: 0.0 | N3: 0.0 | O3: 0.0 | P3: 0.0 | Q3: 0.0 | R3: 0.0 | S3: 0.0 | T3: 0.0 | U3: 0.0 | V3: 0.0 | W3: 0.0 | X3: 0.0 | Y3: 0.0 | Z3: 0.0 | AA3: 0.0 | AB3: 0.0 | AH3: =MAX(0,SUM(A2:C4*$AD$11:$AF$13)) -> 0 | AI3: =MAX(0,SUM(B2:D4*$AD$11:$AF$13)) -> 0 | AJ3: =MAX(0,SUM(C2:E4*$AD$11:$AF$13)) -> 0 | AK3: =MAX(0,SUM(D2:F4*$AD$11:$AF$13)) -> 0 | AL3: =MAX(0,SUM(E2:G4*$AD$11:$AF$13)) -> 0 | AM3: =MAX(0,SUM(F2:H4*$AD$11:$AF$13)) -> 0 | AN3: =MAX(0,SUM(G2:I4*$AD$11:$AF$13)) -> 0 | AO3: =MAX(0,SUM(H2:J4*$AD$11:$AF$13)) -> 0 | AP3: =MAX(0,SUM(I2:K4*$AD$11:$AF$13)) -> 0 | AQ3: =MAX(0,SUM(J2:L4*$AD$11:$AF$13)) -> 0 | AR3: =MAX(0,SUM(K2:M4*$AD$11:$AF$13)) -> 0 | AS3: =MAX(0,SUM(L2:N4*$AD$11:$AF$13)) -> 0 | AT3: =MAX(0,SUM(M2:O4*$AD$11:$AF$13)) -> 0 | AU3: =MAX(0,SUM(N2:P4*$AD$11:$AF$13)) -> 0 | AV3: =MAX(0,SUM(O2:Q4*$AD$11:$AF$13)) -> 0 | AW3: =MAX(0,SUM(P2:R4*$AD$11:$AF$13)) -> 0 | AX3: =MAX(0,SUM(Q2:S4*$AD$11:$AF$13)) -> 0 | AY3: =MAX(0,SUM(R2:T4*$AD$11:$AF$13)) -> 0 | AZ3: =MAX(0,SUM(S2:U4*$AD$11:$AF$13)) -> 0 | BA3: =MAX(0,SUM(T2:V4*$AD$11:$AF$13)) -> 0 | BB3: =MAX(0,SUM(U2:W4*$AD$11:$AF$13)) -> 0 | BC3: =MAX(0,SUM(V2:X4*$AD$11:$AF$13)) -> 0 | BD3: =MAX(0,SUM(W2:Y4*$AD$11:$AF$13)) -> 0 | BE3: =MAX(0,SUM(X2:Z4*$AD$11:$AF$13)) -> 0 | BF3: =MAX(0,SUM(Y2:AA4*$AD$11:$AF$13)) -> 0 | BG3: =MAX(0,SUM(Z2:AB4*$AD$11:$AF$13)) -> 0
A4: 0.0 | B4: 0.0 | C4: 0.0 | D4: 0.0 | E4: 0.0 | F4: 0.0 | G4: 0.0 | H4: 0.0 | I4: 0.0 | J4: 0.0 | K4: 0.0 | L4: 0.0 | M4: 0.0 | N4: 0.0 | O4: 0.0 | P4: 0.0 | Q4: 0.0 | R4: 0.0 | S4: 0.0 | T4: 0.0 | U4: 0.0 | V4: 0.0 | W4: 0.0 | X4: 0.0 | Y4: 0.0 | Z4: 0.0 | AA4: 0.0 | AB4: 0.0 | AH4: =MAX(0,SUM(A3:C5*$AD$11:$AF$13)) -> 0 | AI4: =MAX(0,SUM(B3:D5*$AD$11:$AF$13)) -> 0 | AJ4: =MAX(0,SUM(C3:E5*$AD$11:$AF$13)) -> 0 | AK4: =MAX(0,SUM(D3:F5*$AD$11:$AF$13)) -> 0 | AL4: =MAX(0,SUM(E3:G5*$AD$11:$AF$13)) -> 0 | AM4: =MAX(0,SUM(F3:H5*$AD$11:$AF$13)) -> 0 | AN4: =MAX(0,SUM(G3:I5*$AD$11:$AF$13)) -> 0 | AO4: =MAX(0,SUM(H3:J5*$AD$11:$AF$13)) -> 0 | AP4: =MAX(0,SUM(I3:K5*$AD$11:$AF$13)) -> 0 | AQ4: =MAX(0,SUM(J3:L5*$AD$11:$AF$13)) -> 0 | AR4: =MAX(0,SUM(K3:M5*$AD$11:$AF$13)) -> 0 | AS4: =MAX(0,SUM(L3:N5*$AD$11:$AF$13)) -> 0 | AT4: =MAX(0,SUM(M3:O5*$AD$11:$AF$13)) -> 0 | AU4: =MAX(0,SUM(N3:P5*$AD$11:$AF$13)) -> 0 | AV4: =MAX(0,SUM(O3:Q5*$AD$11:$AF$13)) -> 0 | AW4: =MAX(0,SUM(P3:R5*$AD$11:$AF$13)) -> 0 | AX4: =MAX(0,SUM(Q3:S5*$AD$11:$AF$13)) -> 0 | AY4: =MAX(0,SUM(R3:T5*$AD$11:$AF$13)) -> 0 | AZ4: =MAX(0,SUM(S3:U5*$AD$11:$AF$13)) -> 0 | BA4: =MAX(0,SUM(T3:V5*$AD$11:$AF$13)) -> 0 | BB4: =MAX(0,SUM(U3:W5*$AD$11:$AF$13)) -> 0 | BC4: =MAX(0,SUM(V3:X5*$AD$11:$AF$13)) -> 0 | BD4: =MAX(0,SUM(W3:Y5*$AD$11:$AF$13)) -> 0 | BE4: =MAX(0,SUM(X3:Z5*$AD$11:$AF$13)) -> 0 | BF4: =MAX(0,SUM(Y3:AA5*$AD$11:$AF$13)) -> 0 | BG4: =MAX(0,SUM(Z3:AB5*$AD$11:$AF$13)) -> 0
A5: 0.0 | B5: 0.0 | C5: 0.0 | D5: 0.0 | E5: 0.0 | F5: 0.0 | G5: 0.0 | H5: 0.0 | I5: 0.0 | J5: 0.0 | K5: 0.0 | L5: 0.0 | M5: 0.0 | N5: 0.0 | O5: 0.0 | P5: 0.0 | Q5: 0.0 | R5: 0.0 | S5: 0.0 | T5: 0.0 | U5: 0.0 | V5: 0.0 | W5: 0.0 | X5: 0.0 | Y5: 0.0 | Z5: 0.0 | AA5: 0.0 | AB5: 0.0 | AH5: =MAX(0,SUM(A4:C6*$AD$11:$AF$13)) -> 0 | AI5: =MAX(0,SUM(B4:D6*$AD$11:$AF$13)) -> 0 | AJ5: =MAX(0,SUM(C4:E6*$AD$11:$AF$13)) -> 0 | AK5: =MAX(0,SUM(D4:F6*$AD$11:$AF$13)) -> 0 | AL5: =MAX(0,SUM(E4:G6*$AD$11:$AF$13)) -> 0 | AM5: =MAX(0,SUM(F4:H6*$AD$11:$AF$13)) -> 0 | AN5: =MAX(0,SUM(G4:I6*$AD$11:$AF$13)) -> 0 | AO5: =MAX(0,SUM(H4:J6*$AD$11:$AF$13)) -> 0 | AP5: =MAX(0,SUM(I4:K6*$AD$11:$AF$13)) -> 0 | AQ5: =MAX(0,SUM(J4:L6*$AD$11:$AF$13)) -> 0 | AR5: =MAX(0,SUM(K4:M6*$AD$11:$AF$13)) -> 0 | AS5: =MAX(0,SUM(L4:N6*$AD$11:$AF$13)) -> 0 | AT5: =MAX(0,SUM(M4:O6*$AD$11:$AF$13)) -> 0 | AU5: =MAX(0,SUM(N4:P6*$AD$11:$AF$13)) -> 0 | AV5: =MAX(0,SUM(O4:Q6*$AD$11:$AF$13)) -> 0 | AW5: =MAX(0,SUM(P4:R6*$AD$11:$AF$13)) -> 0 | AX5: =MAX(0,SUM(Q4:S6*$AD$11:$AF$13)) -> 0 | AY5: =MAX(0,SUM(R4:T6*$AD$11:$AF$13)) -> 0 | AZ5: =MAX(0,SUM(S4:U6*$AD$11:$AF$13)) -> 0 | BA5: =MAX(0,SUM(T4:V6*$AD$11:$AF$13)) -> 0 | BB5: =MAX(0,SUM(U4:W6*$AD$11:$AF$13)) -> 0 | BC5: =MAX(0,SUM(V4:X6*$AD$11:$AF$13)) -> 0 | BD5: =MAX(0,SUM(W4:Y6*$AD$11:$AF$13)) -> 0 | BE5: =MAX(0,SUM(X4:Z6*$AD$11:$AF$13)) -> 0 | BF5: =MAX(0,SUM(Y4:AA6*$AD$11:$AF$13)) -> 0 | BG5: =MAX(0,SUM(Z4:AB6*$AD$11:$AF$13)) -> 0
A6: 0.0 | B6: 0.0 | C6: 0.0 | D6: 0.0 | E6: 0.0 | F6: 0.0 | G6: 0.0 | H6: 0.0 | I6: 0.0 | J6: 0.0 | K6: 0.0 | L6: 0.0 | M6: 0.0 | N6: 0.0 | O6: 0.0 | P6: 0.0 | Q6: 0.0 | R6: 0.0 | S6: 0.0 | T6: 0.0 | U6: 0.0 | V6: 0.0 | W6: 0.0 | X6: 0.0 | Y6: 0.0 | Z6: 0.0 | AA6: 0.0 | AB6: 0.0 | AH6: =MAX(0,SUM(A5:C7*$AD$11:$AF$13)) -> 0 | AI6: =MAX(0,SUM(B5:D7*$AD$11:$AF$13)) -> 0 | AJ6: =MAX(0,SUM(C5:E7*$AD$11:$AF$13)) -> 0 | AK6: =MAX(0,SUM(D5:F7*$AD$11:$AF$13)) -> 0 | AL6: =MAX(0,SUM(E5:G7*$AD$11:$AF$13)) -> 0 | AM6: =MAX(0,SUM(F5:H7*$AD$11:$AF$13)) -> 0 | AN6: =MAX(0,SUM(G5:I7*$AD$11:$AF$13)) -> 0 | AO6: =MAX(0,SUM(H5:J7*$AD$11:$AF$13)) -> 0 | AP6: =MAX(0,SUM(I5:K7*$AD$11:$AF$13)) -> 0 | AQ6: =MAX(0,SUM(J5:L7*$AD$11:$AF$13)) -> 0 | AR6: =MAX(0,SUM(K5:M7*$AD$11:$AF$13)) -> 0 | AS6: =MAX(0,SUM(L5:N7*$AD$11:$AF$13)) -> 0 | AT6: =MAX(0,SUM(M5:O7*$AD$11:$AF$13)) -> 0 | AU6: =MAX(0,SUM(N5:P7*$AD$11:$AF$13)) -> 0 | AV6: =MAX(0,SUM(O5:Q7*$AD$11:$AF$13)) -> 0 | AW6: =MAX(0,SUM(P5:R7*$AD$11:$AF$13)) -> 0 | AX6: =MAX(0,SUM(Q5:S7*$AD$11:$AF$13)) -> 0 | AY6: =MAX(0,SUM(R5:T7*$AD$11:$AF$13)) -> 0 | AZ6: =MAX(0,SUM(S5:U7*$AD$11:$AF$13)) -> 0 | BA6: =MAX(0,SUM(T5:V7*$AD$11:$AF$13)) -> 0 | BB6: =MAX(0,SUM(U5:W7*$AD$11:$AF$13)) -> 0 | BC6: =MAX(0,SUM(V5:X7*$AD$11:$AF$13)) -> 0 | BD6: =MAX(0,SUM(W5:Y7*$AD$11:$AF$13)) -> 0 | BE6: =MAX(0,SUM(X5:Z7*$AD$11:$AF$13)) -> 0 | BF6: =MAX(0,SUM(Y5:AA7*$AD$11:$AF$13)) -> 0 | BG6: =MAX(0,SUM(Z5:AB7*$AD$11:$AF$13)) -> 0
A7: 0.0 | B7: 0.0 | C7: 0.0 | D7: 0.0 | E7: 0.0 | F7: 0.0 | G7: 0.0 | H7: 0.0 | I7: 0.0 | J7: 0.0 | K7: 0.0 | L7: 0.0 | M7: 0.0 | N7: 0.0 | O7: 0.0 | P7: 0.0 | Q7: 0.0 | R7: 0.0 | S7: 0.0 | T7: 0.0 | U7: 0.0 | V7: 0.0 | W7: 0.0 | X7: 0.0 | Y7: 0.0 | Z7: 0.0 | AA7: 0.0 | AB7: 0.0 | AD7: Detects horizontal | AH7: =MAX(0,SUM(A6:C8*$AD$11:$AF$13)) -> 0 | AI7: =MAX(0,SUM(B6:D8*$AD$11:$AF$13)) -> 0 | AJ7: =MAX(0,SUM(C6:E8*$AD$11:$AF$13)) -> 0 | AK7: =MAX(0,SUM(D6:F8*$AD$11:$AF$13)) -> 0 | AL7: =MAX(0,SUM(E6:G8*$AD$11:$AF$13)) -> 0 | AM7: =MAX(0,SUM(F6:H8*$AD$11:$AF$13)) -> 0 | AN7: =MAX(0,SUM(G6:I8*$AD$11:$AF$13)) -> 0 | AO7: =MAX(0,SUM(H6:J8*$AD$11:$AF$13)) -> 0 | AP7: =MAX(0,SUM(I6:K8*$AD$11:$AF$13)) -> 0 | AQ7: =MAX(0,SUM(J6:L8*$AD$11:$AF$13)) -> 0 | AR7: =MAX(0,SUM(K6:M8*$AD$11:$AF$13)) -> 0 | AS7: =MAX(0,SUM(L6:N8*$AD$11:$AF$13)) -> 0 | AT7: =MAX(0,SUM(M6:O8*$AD$11:$AF$13)) -> 0 | AU7: =MAX(0,SUM(N6:P8*$AD$11:$AF$13)) -> 0 | AV7: =MAX(0,SUM(O6:Q8*$AD$11:$AF$13)) -> 0 | AW7: =MAX(0,SUM(P6:R8*$AD$11:$AF$13)) -> 0 | AX7: =MAX(0,SUM(Q6:S8*$AD$11:$AF$13)) -> 0 | AY7: =MAX(0,SUM(R6:T8*$AD$11:$AF$13)) -> 0 | AZ7: =MAX(0,SUM(S6:U8*$AD$11:$AF$13)) -> 0 | BA7: =MAX(0,SUM(T6:V8*$AD$11:$AF$13)) -> 0 | BB7: =MAX(0,SUM(U6:W8*$AD$11:$AF$13)) -> 0 | BC7: =MAX(0,SUM(V6:X8*$AD$11:$AF$13)) -> 0 | BD7: =MAX(0,SUM(W6:Y8*$AD$11:$AF$13)) -> 0 | BE7: =MAX(0,SUM(X6:Z8*$AD$11:$AF$13)) -> 0 | BF7: =MAX(0,SUM(Y6:AA8*$AD$11:$AF$13)) -> 0 | BG7: =MAX(0,SUM(Z6:AB8*$AD$11:$AF$13)) -> 0
A8: 0.0 | B8: 0.0 | C8: 0.0 | D8: 0.0 | E8: 0.0 | F8: 0.0 | G8: 0.0 | H8: 0.0 | I8: 0.0 | J8: 0.0 | K8: 0.0 | L8: 0.0 | M8: 0.0 | N8: 0.0 | O8: 0.0 | P8: 0.0 | Q8: 0.0 | R8: 0.0 | S8: 0.0 | T8: 0.0 | U8: 0.0 | V8: 0.0 | W8: 0.0 | X8: 0.0 | Y8: 0.0 | Z8: 0.0 | AA8: 0.0 | AB8: 0.0 | AD8: lines | AH8: =MAX(0,SUM(A7:C9*$AD$11:$AF$13)) -> 0 | AI8: =MAX(0,SUM(B7:D9*$AD$11:$AF$13)) -> 0 | AJ8: =MAX(0,SUM(C7:E9*$AD$11:$AF$13)) -> 0 | AK8: =MAX(0,SUM(D7:F9*$AD$11:$AF$13)) -> 0 | AL8: =MAX(0,SUM(E7:G9*$AD$11:$AF$13)) -> 0 | AM8: =MAX(0,SUM(F7:H9*$AD$11:$AF$13)) -> 0 | AN8: =MAX(0,SUM(G7:I9*$AD$11:$AF$13)) -> 0 | AO8: =MAX(0,SUM(H7:J9*$AD$11:$AF$13)) -> 0 | AP8: =MAX(0,SUM(I7:K9*$AD$11:$AF$13)) -> 0 | AQ8: =MAX(0,SUM(J7:L9*$AD$11:$AF$13)) -> 0 | AR8: =MAX(0,SUM(K7:M9*$AD$11:$AF$13)) -> 0 | AS8: =MAX(0,SUM(L7:N9*$AD$11:$AF$13)) -> 0 | AT8: =MAX(0,SUM(M7:O9*$AD$11:$AF$13)) -> 0 | AU8: =MAX(0,SUM(N7:P9*$AD$11:$AF$13)) -> 0 | AV8: =MAX(0,SUM(O7:Q9*$AD$11:$AF$13)) -> 0 | AW8: =MAX(0,SUM(P7:R9*$AD$11:$AF$13)) -> 0 | AX8: =MAX(0,SUM(Q7:S9*$AD$11:$AF$13)) -> 0 | AY8: =MAX(0,SUM(R7:T9*$AD$11:$AF$13)) -> 0 | AZ8: =MAX(0,SUM(S7:U9*$AD$11:$AF$13)) -> 0 | BA8: =MAX(0,SUM(T7:V9*$AD$11:$AF$13)) -> 0 | BB8: =MAX(0,SUM(U7:W9*$AD$11:$AF$13)) -> 0 | BC8: =MAX(0,SUM(V7:X9*$AD$11:$AF$13)) -> 0 | BD8: =MAX(0,SUM(W7:Y9*$AD$11:$AF$13)) -> 0 | BE8: =MAX(0,SUM(X7:Z9*$AD$11:$AF$13)) -> 0 | BF8: =MAX(0,SUM(Y7:AA9*$AD$11:$AF$13)) -> 0 | BG8: =MAX(0,SUM(Z7:AB9*$AD$11:$AF$13)) -> 0
A9: 0.0 | B9: 0.0 | C9: 0.0 | D9: 0.0 | E9: 0.0 | F9: 0.0 | G9: 0.0 | H9: 0.0 | I9: 0.0 | J9: 0.0 | K9: 0.0 | L9: 0.4 | M9: 0.4 | N9: 0.3 | O9: 0.5 | P9: 0.2 | Q9: 0.0 | R9: 0.0 | S9: 0.0 | T9: 0.0 | U9: 0.0 | V9: 0.0 | W9: 0.0 | X9: 0.0 | Y9: 0.0 | Z9: 0.0 | AA9: 0.0 | AB9: 0.0 | AD9: filter 1 | AH9: =MAX(0,SUM(A8:C10*$AD$11:$AF$13)) -> 0 | AI9: =MAX(0,SUM(B8:D10*$AD$11:$AF$13)) -> 0 | AJ9: =MAX(0,SUM(C8:E10*$AD$11:$AF$13)) -> 0 | AK9: =MAX(0,SUM(D8:F10*$AD$11:$AF$13)) -> 0 | AL9: =MAX(0,SUM(E8:G10*$AD$11:$AF$13)) -> 0 | AM9: =MAX(0,SUM(F8:H10*$AD$11:$AF$13)) -> 0 | AN9: =MAX(0,SUM(G8:I10*$AD$11:$AF$13)) -> 0 | AO9: =MAX(0,SUM(H8:J10*$AD$11:$AF$13)) -> 0 | AP9: =MAX(0,SUM(I8:K10*$AD$11:$AF$13)) -> 0 | AQ9: =MAX(0,SUM(J8:L10*$AD$11:$AF$13)) -> 0 | AR9: =MAX(0,SUM(K8:M10*$AD$11:$AF$13)) -> 0 | AS9: =MAX(0,SUM(L8:N10*$AD$11:$AF$13)) -> 0 | AT9: =MAX(0,SUM(M8:O10*$AD$11:$AF$13)) -> 0 | AU9: =MAX(0,SUM(N8:P10*$AD$11:$AF$13)) -> 0 | AV9: =MAX(0,SUM(O8:Q10*$AD$11:$AF$13)) -> 0 | AW9: =MAX(0,SUM(P8:R10*$AD$11:$AF$13)) -> 0 | AX9: =MAX(0,SUM(Q8:S10*$AD$11:$AF$13)) -> 0 | AY9: =MAX(0,SUM(R8:T10*$AD$11:$AF$13)) -> 0 | AZ9: =MAX(0,SUM(S8:U10*$AD$11:$AF$13)) -> 0 | BA9: =MAX(0,SUM(T8:V10*$AD$11:$AF$13)) -> 0 | BB9: =MAX(0,SUM(U8:W10*$AD$11:$AF$13)) -> 0 | BC9: =MAX(0,SUM(V8:X10*$AD$11:$AF$13)) -> 0 | BD9: =MAX(0,SUM(W8:Y10*$AD$11:$AF$13)) -> 0 | BE9: =MAX(0,SUM(X8:Z10*$AD$11:$AF$13)) -> 0 | BF9: =MAX(0,SUM(Y8:AA10*$AD$11:$AF$13)) -> 0 | BG9: =MAX(0,SUM(Z8:AB10*$AD$11:$AF$13)) -> 0
A10: 0.0 | B10: 0.0 | C10: 0.0 | D10: 0.4 | E10: 0.5 | F10: 0.9 | G10: 0.9 | H10: 0.9 | I10: 0.9 | J10: 0.9 | K10: 0.9 | L10: 1.0 | M10: 1.0 | N10: 1.0 | O10: 1.0 | P10: 1.0 | Q10: 0.9 | R10: 0.9 | S10: 0.9 | T10: 0.9 | U10: 0.0 | V10: 0.0 | W10: 0.0 | X10: 0.0 | Y10: 0.0 | Z10: 0.0 | AA10: 0.0 | AB10: 0.0 | AH10: =MAX(0,SUM(A9:C11*$AD$11:$AF$13)) -> 0 | AI10: =MAX(0,SUM(B9:D11*$AD$11:$AF$13)) -> 0 | AJ10: =MAX(0,SUM(C9:E11*$AD$11:$AF$13)) -> 0 | AK10: =MAX(0,SUM(D9:F11*$AD$11:$AF$13)) -> 0 | AL10: =MAX(0,SUM(E9:G11*$AD$11:$AF$13)) -> 0 | AM10: =MAX(0,SUM(F9:H11*$AD$11:$AF$13)) -> 0 | AN10: =MAX(0,SUM(G9:I11*$AD$11:$AF$13)) -> 0 | AO10: =MAX(0,SUM(H9:J11*$AD$11:$AF$13)) -> 0 | AP10: =MAX(0,SUM(I9:K11*$AD$11:$AF$13)) -> 0 | AQ10: =MAX(0,SUM(J9:L11*$AD$11:$AF$13)) -> 0 | AR10: =MAX(0,SUM(K9:M11*$AD$11:$AF$13)) -> 0 | AS10: =MAX(0,SUM(L9:N11*$AD$11:$AF$13)) -> 0 | AT10: =MAX(0,SUM(M9:O11*$AD$11:$AF$13)) -> 0 | AU10: =MAX(0,SUM(N9:P11*$AD$11:$AF$13)) -> 0 | AV10: =MAX(0,SUM(O9:Q11*$AD$11:$AF$13)) -> 0 | AW10: =MAX(0,SUM(P9:R11*$AD$11:$AF$13)) -> 0 | AX10: =MAX(0,SUM(Q9:S11*$AD$11:$AF$13)) -> 0 | AY10: =MAX(0,SUM(R9:T11*$AD$11:$AF$13)) -> 0 | AZ10: =MAX(0,SUM(S9:U11*$AD$11:$AF$13)) -> 0 | BA10: =MAX(0,SUM(T9:V11*$AD$11:$AF$13)) -> 0 | BB10: =MAX(0,SUM(U9:W11*$AD$11:$AF$13)) -> 0 | BC10: =MAX(0,SUM(V9:X11*$AD$11:$AF$13)) -> 0 | BD10: =MAX(0,SUM(W9:Y11*$AD$11:$AF$13)) -> 0 | BE10: =MAX(0,SUM(X9:Z11*$AD$11:$AF$13)) -> 0 | BF10: =MAX(0,SUM(Y9:AA11*$AD$11:$AF$13)) -> 0 | BG10: =MAX(0,SUM(Z9:AB11*$AD$11:$AF$13)) -> 0
A11: 0.0 | B11: 0.0 | C11: 0.5 | D11: 1.0 | E11: 1.0 | F11: 1.0 | G11: 1.0 | H11: 1.0 | I11: 1.0 | J11: 1.0 | K11: 1.0 | L11: 1.0 | M11: 1.0 | N11: 1.0 | O11: 1.0 | P11: 1.0 | Q11: 1.0 | R11: 1.0 | S11: 0.7 | T11: 0.7 | U11: 0.0 | V11: 0.0 | W11: 0.0 | X11: 0.0 | Y11: 0.0 | Z11: 0.0 | AA11: 0.0 | AB11: 0.0 | AD11: 1 | AE11: 1 | AF11: 1 | AH11: =MAX(0,SUM(A10:C12*$AD$11:$AF$13)) -> 0 | AI11: =MAX(0,SUM(B10:D12*$AD$11:$AF$13)) -> 0 | AJ11: =MAX(0,SUM(C10:E12*$AD$11:$AF$13)) -> 0 | AK11: =MAX(0,SUM(D10:F12*$AD$11:$AF$13)) -> 0 | AL11: =MAX(0,SUM(E10:G12*$AD$11:$AF$13)) -> 0.007843077183 | AM11: =MAX(0,SUM(F10:H12*$AD$11:$AF$13)) -> 0.4235293865 | AN11: =MAX(0,SUM(G10:I12*$AD$11:$AF$13)) -> 0.4235293865 | AO11: =MAX(0,SUM(H10:J12*$AD$11:$AF$13)) -> 0.6588235497 | AP11: =MAX(0,SUM(I10:K12*$AD$11:$AF$13)) -> 1.200000077 | AQ11: =MAX(0,SUM(J10:L12*$AD$11:$AF$13)) -> 1.8039217 | AR11: =MAX(0,SUM(K10:M12*$AD$11:$AF$13)) -> 2.172549158 | AS11: =MAX(0,SUM(L10:N12*$AD$11:$AF$13)) -> 2.223529547 | AT11: =MAX(0,SUM(M10:O12*$AD$11:$AF$13)) -> 2.235294253 | AU11: =MAX(0,SUM(N10:P12*$AD$11:$AF$13)) -> 1.94901973 | AV11: =MAX(0,SUM(O10:Q12*$AD$11:$AF$13)) -> 1.26666674 | AW11: =MAX(0,SUM(P10:R12*$AD$11:$AF$13)) -> 0.4352941513 | AX11: =MAX(0,SUM(Q10:S12*$AD$11:$AF$13)) -> 0 | AY11: =MAX(0,SUM(R10:T12*$AD$11:$AF$13)) -> 0.03137260675 | AZ11: =MAX(0,SUM(S10:U12*$AD$11:$AF$13)) -> 0 | BA11: =MAX(0,SUM(T10:V12*$AD$11:$AF$13)) -> 0 | BB11: =MAX(0,SUM(U10:W12*$AD$11:$AF$13)) -> 0 | BC11: =MAX(0,SUM(V10:X12*$AD$11:$AF$13)) -> 0 | BD11: =MAX(0,SUM(W10:Y12*$AD$11:$AF$13)) -> 0 | BE11: =MAX(0,SUM(X10:Z12*$AD$11:$AF$13)) -> 0 | BF11: =MAX(0,SUM(Y10:AA12*$AD$11:$AF$13)) -> 0 | BG11: =MAX(0,SUM(Z10:AB12*$AD$11:$AF$13)) -> 0
A12: 0.0 | B12: 0.0 | C12: 0.9 | D12: 1.0 | E12: 0.8 | F12: 0.8 | G12: 0.8 | H12: 0.8 | I12: 0.8 | J12: 0.5 | K12: 0.2 | L12: 0.2 | M12: 0.2 | N12: 0.2 | O12: 0.2 | P12: 0.5 | Q12: 0.9 | R12: 1.0 | S12: 1.0 | T12: 0.7 | U12: 0.7 | V12: 0.0 | W12: 0.0 | X12: 0.0 | Y12: 0.0 | Z12: 0.0 | AA12: 0.0 | AB12: 0.0 | AD12: 0 | AE12: 0 | AF12: 0 | AH12: =MAX(0,SUM(A11:C13*$AD$11:$AF$13)) -> 0.4000000209 | AI12: =MAX(0,SUM(B11:D13*$AD$11:$AF$13)) -> 1.062745169 | AJ12: =MAX(0,SUM(C11:E13*$AD$11:$AF$13)) -> 2.007843263 | AK12: =MAX(0,SUM(D11:F13*$AD$11:$AF$13)) -> 2.603921734 | AL12: =MAX(0,SUM(E11:G13*$AD$11:$AF$13)) -> 2.937255077 | AM12: =MAX(0,SUM(F11:H13*$AD$11:$AF$13)) -> 2.988235474 | AN12: =MAX(0,SUM(G11:I13*$AD$11:$AF$13)) -> 2.988235474 | AO12: =MAX(0,SUM(H11:J13*$AD$11:$AF$13)) -> 2.988235474 | AP12: =MAX(0,SUM(I11:K13*$AD$11:$AF$13)) -> 2.988235474 | AQ12: =MAX(0,SUM(J11:L13*$AD$11:$AF$13)) -> 2.988235474 | AR12: =MAX(0,SUM(K11:M13*$AD$11:$AF$13)) -> 2.988235474 | AS12: =MAX(0,SUM(L11:N13*$AD$11:$AF$13)) -> 2.988235474 | AT12: =MAX(0,SUM(M11:O13*$AD$11:$AF$13)) -> 2.988235474 | AU12: =MAX(0,SUM(N11:P13*$AD$11:$AF$13)) -> 2.988235474 | AV12: =MAX(0,SUM(O11:Q13*$AD$11:$AF$13)) -> 2.854902133 | AW12: =MAX(0,SUM(P11:R13*$AD$11:$AF$13)) -> 2.019607946 | AX12: =MAX(0,SUM(Q11:S13*$AD$11:$AF$13)) -> 0.7686274499 | AY12: =MAX(0,SUM(R11:T13*$AD$11:$AF$13)) -> 0 | AZ12: =MAX(0,SUM(S11:U13*$AD$11:$AF$13)) -> 0 | BA12: =MAX(0,SUM(T11:V13*$AD$11:$AF$13)) -> 0 | BB12: =MAX(0,SUM(U11:W13*$AD$11:$AF$13)) -> 0 | BC12: =MAX(0,SUM(V11:X13*$AD$11:$AF$13)) -> 0 | BD12: =MAX(0,SUM(W11:Y13*$AD$11:$AF$13)) -> 0 | BE12: =MAX(0,SUM(X11:Z13*$AD$11:$AF$13)) -> 0 | BF12: =MAX(0,SUM(Y11:AA13*$AD$11:$AF$13)) -> 0 | BG12: =MAX(0,SUM(Z11:AB13*$AD$11:$AF$13)) -> 0
A13: 0.0 | B13: 0.0 | C13: 0.1 | D13: 0.3 | E13: 0.1 | F13: 0.0 | G13: 0.0 | H13: 0.0 | I13: 0.0 | J13: 0.0 | K13: 0.0 | L13: 0.0 | M13: 0.0 | N13: 0.0 | O13: 0.0 | P13: 0.0 | Q13: 0.1 | R13: 0.8 | S13: 1.0 | T13: 1.0 | U13: 0.5 | V13: 0.0 | W13: 0.0 | X13: 0.0 | Y13: 0.0 | Z13: 0.0 | AA13: 0.0 | AB13: 0.0 | AD13: -1 | AE13: -1 | AF13: -1 | AH13: =MAX(0,SUM(A12:C14*$AD$11:$AF$13)) -> 0.8862745762 | AI13: =MAX(0,SUM(B12:D14*$AD$11:$AF$13)) -> 1.882353067 | AJ13: =MAX(0,SUM(C12:E14*$AD$11:$AF$13)) -> 2.698039412 | AK13: =MAX(0,SUM(D12:F14*$AD$11:$AF$13)) -> 2.592157066 | AL13: =MAX(0,SUM(E12:G14*$AD$11:$AF$13)) -> 2.376470804 | AM13: =MAX(0,SUM(F12:H14*$AD$11:$AF$13)) -> 2.341176689 | AN13: =MAX(0,SUM(G12:I14*$AD$11:$AF$13)) -> 2.341176689 | AO13: =MAX(0,SUM(H12:J14*$AD$11:$AF$13)) -> 2.105882525 | AP13: =MAX(0,SUM(I12:K14*$AD$11:$AF$13)) -> 1.564705998 | AQ13: =MAX(0,SUM(J12:L14*$AD$11:$AF$13)) -> 1.02352947 | AR13: =MAX(0,SUM(K12:M14*$AD$11:$AF$13)) -> 0.7176471055 | AS13: =MAX(0,SUM(L12:N14*$AD$11:$AF$13)) -> 0.7176471055 | AT13: =MAX(0,SUM(M12:O14*$AD$11:$AF$13)) -> 0.7176471055 | AU13: =MAX(0,SUM(N12:P14*$AD$11:$AF$13)) -> 0.9803922176 | AV13: =MAX(0,SUM(O12:Q14*$AD$11:$AF$13)) -> 1.611764818 | AW13: =MAX(0,SUM(P12:R14*$AD$11:$AF$13)) -> 2.039215833 | AX13: =MAX(0,SUM(Q12:S14*$AD$11:$AF$13)) -> 1.537255019 | AY13: =MAX(0,SUM(R12:T14*$AD$11:$AF$13)) -> 0.4117647111 | AZ13: =MAX(0,SUM(S12:U14*$AD$11:$AF$13)) -> 0 | BA13: =MAX(0,SUM(T12:V14*$AD$11:$AF$13)) -> 0 | BB13: =MAX(0,SUM(U12:W14*$AD$11:$AF$13)) -> 0 | BC13: =MAX(0,SUM(V12:X14*$AD$11:$AF$13)) -> 0 | BD13: =MAX(0,SUM(W12:Y14*$AD$11:$AF$13)) -> 0 | BE13: =MAX(0,SUM(X12:Z14*$AD$11:$AF$13)) -> 0 | BF13: =MAX(0,SUM(Y12:AA14*$AD$11:$AF$13)) -> 0 | BG13: =MAX(0,SUM(Z12:AB14*$AD$11:$AF$13)) -> 0
A14: 0.0 | B14: 0.0 | C14: 0.0 | D14: 0.0 | E14: 0.0 | F14: 0.0 | G14: 0.0 | H14: 0.0 | I14: 0.0 | J14: 0.0 | K14: 0.0 | L14: 0.0 | M14: 0.0 | N14: 0.0 | O14: 0.0 | P14: 0.0 | Q14: 0.0 | R14: 0.3 | S14: 1.0 | T14: 1.0 | U14: 0.9 | V14: 0.0 | W14: 0.0 | X14: 0.0 | Y14: 0.0 | Z14: 0.0 | AA14: 0.0 | AB14: 0.0 | AH14: =MAX(0,SUM(A13:C15*$AD$11:$AF$13)) -> 0.1490196139 | AI14: =MAX(0,SUM(B13:D15*$AD$11:$AF$13)) -> 0.4705882519 | AJ14: =MAX(0,SUM(C13:E15*$AD$11:$AF$13)) -> 0.5215686485 | AK14: =MAX(0,SUM(D13:F15*$AD$11:$AF$13)) -> 0.3725490347 | AL14: =MAX(0,SUM(E13:G15*$AD$11:$AF$13)) -> 0.05098039657 | AM14: =MAX(0,SUM(F13:H15*$AD$11:$AF$13)) -> 0 | AN14: =MAX(0,SUM(G13:I15*$AD$11:$AF$13)) -> 0 | AO14: =MAX(0,SUM(H13:J15*$AD$11:$AF$13)) -> 0 | AP14: =MAX(0,SUM(I13:K15*$AD$11:$AF$13)) -> 0 | AQ14: =MAX(0,SUM(J13:L15*$AD$11:$AF$13)) -> 0 | AR14: =MAX(0,SUM(K13:M15*$AD$11:$AF$13)) -> 0 | AS14: =MAX(0,SUM(L13:N15*$AD$11:$AF$13)) -> 0 | AT14: =MAX(0,SUM(M13:O15*$AD$11:$AF$13)) -> 0 | AU14: =MAX(0,SUM(N13:P15*$AD$11:$AF$13)) -> 0 | AV14: =MAX(0,SUM(O13:Q15*$AD$11:$AF$13)) -> 0.1333333403 | AW14: =MAX(0,SUM(P13:R15*$AD$11:$AF$13)) -> 0.6392157525 | AX14: =MAX(0,SUM(Q13:S15*$AD$11:$AF$13)) -> 0.6392157525 | AY14: =MAX(0,SUM(R13:T15*$AD$11:$AF$13)) -> 0.5058824122 | AZ14: =MAX(0,SUM(S13:U15*$AD$11:$AF$13)) -> 0 | BA14: =MAX(0,SUM(T13:V15*$AD$11:$AF$13)) -> 0 | BB14: =MAX(0,SUM(U13:W15*$AD$11:$AF$13)) -> 0 | BC14: =MAX(0,SUM(V13:X15*$AD$11:$AF$13)) -> 0 | BD14: =MAX(0,SUM(W13:Y15*$AD$11:$AF$13)) -> 0 | BE14: =MAX(0,SUM(X13:Z15*$AD$11:$AF$13)) -> 0 | BF14: =MAX(0,SUM(Y13:AA15*$AD$11:$AF$13)) -> 0 | BG14: =MAX(0,SUM(Z13:AB15*$AD$11:$AF$13)) -> 0
A15: 0.0 | B15: 0.0 | C15: 0.0 | D15: 0.0 | E15: 0.0 | F15: 0.0 | G15: 0.0 | H15: 0.0 | I15: 0.0 | J15: 0.0 | K15: 0.0 | L15: 0.0 | M15: 0.0 | N15: 0.0 | O15: 0.0 | P15: 0.0 | Q15: 0.0 | R15: 0.3 | S15: 1.0 | T15: 1.0 | U15: 0.9 | V15: 0.0 | W15: 0.0 | X15: 0.0 | Y15: 0.0 | Z15: 0.0 | AA15: 0.0 | AB15: 0.0 | AH15: =MAX(0,SUM(A14:C16*$AD$11:$AF$13)) -> 0 | AI15: =MAX(0,SUM(B14:D16*$AD$11:$AF$13)) -> 0 | AJ15: =MAX(0,SUM(C14:E16*$AD$11:$AF$13)) -> 0 | AK15: =MAX(0,SUM(D14:F16*$AD$11:$AF$13)) -> 0 | AL15: =MAX(0,SUM(E14:G16*$AD$11:$AF$13)) -> 0 | AM15: =MAX(0,SUM(F14:H16*$AD$11:$AF$13)) -> 0 | AN15: =MAX(0,SUM(G14:I16*$AD$11:$AF$13)) -> 0 | AO15: =MAX(0,SUM(H14:J16*$AD$11:$AF$13)) -> 0 | AP15: =MAX(0,SUM(I14:K16*$AD$11:$AF$13)) -> 0 | AQ15: =MAX(0,SUM(J14:L16*$AD$11:$AF$13)) -> 0 | AR15: =MAX(0,SUM(K14:M16*$AD$11:$AF$13)) -> 0 | AS15: =MAX(0,SUM(L14:N16*$AD$11:$AF$13)) -> 0 | AT15: =MAX(0,SUM(M14:O16*$AD$11:$AF$13)) -> 0 | AU15: =MAX(0,SUM(N14:P16*$AD$11:$AF$13)) -> 0 | AV15: =MAX(0,SUM(O14:Q16*$AD$11:$AF$13)) -> 0 | AW15: =MAX(0,SUM(P14:R16*$AD$11:$AF$13)) -> 0.09019607306 | AX15: =MAX(0,SUM(Q14:S16*$AD$11:$AF$13)) -> 0.3294117749 | AY15: =MAX(0,SUM(R14:T16*$AD$11:$AF$13)) -> 0.3294117749 | AZ15: =MAX(0,SUM(S14:U16*$AD$11:$AF$13)) -> 0 | BA15: =MAX(0,SUM(T14:V16*$AD$11:$AF$13)) -> 0 | BB15: =MAX(0,SUM(U14:W16*$AD$11:$AF$13)) -> 0 | BC15: =MAX(0,SUM(V14:X16*$AD$11:$AF$13)) -> 0 | BD15: =MAX(0,SUM(W14:Y16*$AD$11:$AF$13)) -> 0 | BE15: =MAX(0,SUM(X14:Z16*$AD$11:$AF$13)) -> 0 | BF15: =MAX(0,SUM(Y14:AA16*$AD$11:$AF$13)) -> 0 | BG15: =MAX(0,SUM(Z14:AB16*$AD$11:$AF$13)) -> 0
A16: 0.0 | B16: 0.0 | C16: 0.0 | D16: 0.0 | E16: 0.0 | F16: 0.0 | G16: 0.0 | H16: 0.0 | I16: 0.0 | J16: 0.0 | K16: 0.0 | L16: 0.4 | M16: 0.4 | N16: 0.3 | O16: 0.5 | P16: 0.2 | Q16: 0.0 | R16: 0.0 | S16: 1.0 | T16: 1.0 | U16: 0.9 | V16: 0.2 | W16: 0.0 | X16: 0.0 | Y16: 0.0 | Z16: 0.0 | AA16: 0.0 | AB16: 0.0 | AH16: =MAX(0,SUM(A15:C17*$AD$11:$AF$13)) -> 0 | AI16: =MAX(0,SUM(B15:D17*$AD$11:$AF$13)) -> 0 | AJ16: =MAX(0,SUM(C15:E17*$AD$11:$AF$13)) -> 0 | AK16: =MAX(0,SUM(D15:F17*$AD$11:$AF$13)) -> 0 | AL16: =MAX(0,SUM(E15:G17*$AD$11:$AF$13)) -> 0 | AM16: =MAX(0,SUM(F15:H17*$AD$11:$AF$13)) -> 0 | AN16: =MAX(0,SUM(G15:I17*$AD$11:$AF$13)) -> 0 | AO16: =MAX(0,SUM(H15:J17*$AD$11:$AF$13)) -> 0 | AP16: =MAX(0,SUM(I15:K17*$AD$11:$AF$13)) -> 0 | AQ16: =MAX(0,SUM(J15:L17*$AD$11:$AF$13)) -> 0 | AR16: =MAX(0,SUM(K15:M17*$AD$11:$AF$13)) -> 0 | AS16: =MAX(0,SUM(L15:N17*$AD$11:$AF$13)) -> 0 | AT16: =MAX(0,SUM(M15:O17*$AD$11:$AF$13)) -> 0 | AU16: =MAX(0,SUM(N15:P17*$AD$11:$AF$13)) -> 0 | AV16: =MAX(0,SUM(O15:Q17*$AD$11:$AF$13)) -> 0 | AW16: =MAX(0,SUM(P15:R17*$AD$11:$AF$13)) -> 0 | AX16: =MAX(0,SUM(Q15:S17*$AD$11:$AF$13)) -> 0 | AY16: =MAX(0,SUM(R15:T17*$AD$11:$AF$13)) -> 0 | AZ16: =MAX(0,SUM(S15:U17*$AD$11:$AF$13)) -> 0 | BA16: =MAX(0,SUM(T15:V17*$AD$11:$AF$13)) -> 0 | BB16: =MAX(0,SUM(U15:W17*$AD$11:$AF$13)) -> 0 | BC16: =MAX(0,SUM(V15:X17*$AD$11:$AF$13)) -> 0 | BD16: =MAX(0,SUM(W15:Y17*$AD$11:$AF$13)) -> 0 | BE16: =MAX(0,SUM(X15:Z17*$AD$11:$AF$13)) -> 0 | BF16: =MAX(0,SUM(Y15:AA17*$AD$11:$AF$13)) -> 0 | BG16: =MAX(0,SUM(Z15:AB17*$AD$11:$AF$13)) -> 0
A17: 0.0 | B17: 0.0 | C17: 0.0 | D17: 0.4 | E17: 0.5 | F17: 0.9 | G17: 0.9 | H17: 0.9 | I17: 0.9 | J17: 0.9 | K17: 0.9 | L17: 1.0 | M17: 1.0 | N17: 1.0 | O17: 1.0 | P17: 1.0 | Q17: 0.9 | R17: 0.7 | S17: 1.0 | T17: 1.0 | U17: 0.9 | V17: 0.9 | W17: 0.0 | X17: 0.0 | Y17: 0.0 | Z17: 0.0 | AA17: 0.0 | AB17: 0.0 | AH17: =MAX(0,SUM(A16:C18*$AD$11:$AF$13)) -> 0 | AI17: =MAX(0,SUM(B16:D18*$AD$11:$AF$13)) -> 0 | AJ17: =MAX(0,SUM(C16:E18*$AD$11:$AF$13)) -> 0 | AK17: =MAX(0,SUM(D16:F18*$AD$11:$AF$13)) -> 0 | AL17: =MAX(0,SUM(E16:G18*$AD$11:$AF$13)) -> 0 | AM17: =MAX(0,SUM(F16:H18*$AD$11:$AF$13)) -> 0 | AN17: =MAX(0,SUM(G16:I18*$AD$11:$AF$13)) -> 0 | AO17: =MAX(0,SUM(H16:J18*$AD$11:$AF$13)) -> 0 | AP17: =MAX(0,SUM(I16:K18*$AD$11:$AF$13)) -> 0 | AQ17: =MAX(0,SUM(J16:L18*$AD$11:$AF$13)) -> 0 | AR17: =MAX(0,SUM(K16:M18*$AD$11:$AF$13)) -> 0 | AS17: =MAX(0,SUM(L16:N18*$AD$11:$AF$13)) -> 0 | AT17: =MAX(0,SUM(M16:O18*$AD$11:$AF$13)) -> 0 | AU17: =MAX(0,SUM(N16:P18*$AD$11:$AF$13)) -> 0 | AV17: =MAX(0,SUM(O16:Q18*$AD$11:$AF$13)) -> 0 | AW17: =MAX(0,SUM(P16:R18*$AD$11:$AF$13)) -> 0 | AX17: =MAX(0,SUM(Q16:S18*$AD$11:$AF$13)) -> 0 | AY17: =MAX(0,SUM(R16:T18*$AD$11:$AF$13)) -> 0 | AZ17: =MAX(0,SUM(S16:U18*$AD$11:$AF$13)) -> 0 | BA17: =MAX(0,SUM(T16:V18*$AD$11:$AF$13)) -> 0 | BB17: =MAX(0,SUM(U16:W18*$AD$11:$AF$13)) -> 0 | BC17: =MAX(0,SUM(V16:X18*$AD$11:$AF$13)) -> 0 | BD17: =MAX(0,SUM(W16:Y18*$AD$11:$AF$13)) -> 0 | BE17: =MAX(0,SUM(X16:Z18*$AD$11:$AF$13)) -> 0 | BF17: =MAX(0,SUM(Y16:AA18*$AD$11:$AF$13)) -> 0 | BG17: =MAX(0,SUM(Z16:AB18*$AD$11:$AF$13)) -> 0
A18: 0.0 | B18: 0.0 | C18: 0.5 | D18: 1.0 | E18: 1.0 | F18: 1.0 | G18: 1.0 | H18: 1.0 | I18: 1.0 | J18: 1.0 | K18: 1.0 | L18: 1.0 | M18: 1.0 | N18: 1.0 | O18: 1.0 | P18: 1.0 | Q18: 1.0 | R18: 1.0 | S18: 1.0 | T18: 1.0 | U18: 0.9 | V18: 0.6 | W18: 0.0 | X18: 0.0 | Y18: 0.0 | Z18: 0.0 | AA18: 0.0 | AB18: 0.0 | AH18: =MAX(0,SUM(A17:C19*$AD$11:$AF$13)) -> 0 | AI18: =MAX(0,SUM(B17:D19*$AD$11:$AF$13)) -> 0 | AJ18: =MAX(0,SUM(C17:E19*$AD$11:$AF$13)) -> 0 | AK18: =MAX(0,SUM(D17:F19*$AD$11:$AF$13)) -> 0 | AL18: =MAX(0,SUM(E17:G19*$AD$11:$AF$13)) -> 0.007843077183 | AM18: =MAX(0,SUM(F17:H19*$AD$11:$AF$13)) -> 0.4235293865 | AN18: =MAX(0,SUM(G17:I19*$AD$11:$AF$13)) -> 0.4235293865 | AO18: =MAX(0,SUM(H17:J19*$AD$11:$AF$13)) -> 0.6588235497 | AP18: =MAX(0,SUM(I17:K19*$AD$11:$AF$13)) -> 1.200000077 | AQ18: =MAX(0,SUM(J17:L19*$AD$11:$AF$13)) -> 1.8039217 | AR18: =MAX(0,SUM(K17:M19*$AD$11:$AF$13)) -> 2.172549158 | AS18: =MAX(0,SUM(L17:N19*$AD$11:$AF$13)) -> 2.223529547 | AT18: =MAX(0,SUM(M17:O19*$AD$11:$AF$13)) -> 2.235294253 | AU18: =MAX(0,SUM(N17:P19*$AD$11:$AF$13)) -> 1.94901973 | AV18: =MAX(0,SUM(O17:Q19*$AD$11:$AF$13)) -> 1.26666674 | AW18: =MAX(0,SUM(P17:R19*$AD$11:$AF$13)) -> 0.258823514 | AX18: =MAX(0,SUM(Q17:S19*$AD$11:$AF$13)) -> 0 | AY18: =MAX(0,SUM(R17:T19*$AD$11:$AF$13)) -> 0 | AZ18: =MAX(0,SUM(S17:U19*$AD$11:$AF$13)) -> 0 | BA18: =MAX(0,SUM(T17:V19*$AD$11:$AF$13)) -> 0.482352972 | BB18: =MAX(0,SUM(U17:W19*$AD$11:$AF$13)) -> 0.482352972 | BC18: =MAX(0,SUM(V17:X19*$AD$11:$AF$13)) -> 0.482352972 | BD18: =MAX(0,SUM(W17:Y19*$AD$11:$AF$13)) -> 0 | BE18: =MAX(0,SUM(X17:Z19*$AD$11:$AF$13)) -> 0 | BF18: =MAX(0,SUM(Y17:AA19*$AD$11:$AF$13)) -> 0 | BG18: =MAX(0,SUM(Z17:AB19*$AD$11:$AF$13)) -> 0
A19: 0.0 | B19: 0.0 | C19: 0.9 | D19: 1.0 | E19: 0.8 | F19: 0.8 | G19: 0.8 | H19: 0.8 | I19: 0.8 | J19: 0.5 | K19: 0.2 | L19: 0.2 | M19: 0.2 | N19: 0.2 | O19: 0.2 | P19: 0.5 | Q19: 0.9 | R19: 1.0 | S19: 1.0 | T19: 1.0 | U19: 0.9 | V19: 0.5 | W19: 0.0 | X19: 0.0 | Y19: 0.0 | Z19: 0.0 | AA19: 0.0 | AB19: 0.0 | AH19: =MAX(0,SUM(A18:C20*$AD$11:$AF$13)) -> 0.4000000209 | AI19: =MAX(0,SUM(B18:D20*$AD$11:$AF$13)) -> 1.062745169 | AJ19: =MAX(0,SUM(C18:E20*$AD$11:$AF$13)) -> 2.007843263 | AK19: =MAX(0,SUM(D18:F20*$AD$11:$AF$13)) -> 2.603921734 | AL19: =MAX(0,SUM(E18:G20*$AD$11:$AF$13)) -> 2.937255077 | AM19: =MAX(0,SUM(F18:H20*$AD$11:$AF$13)) -> 2.988235474 | AN19: =MAX(0,SUM(G18:I20*$AD$11:$AF$13)) -> 2.988235474 | AO19: =MAX(0,SUM(H18:J20*$AD$11:$AF$13)) -> 2.988235474 | AP19: =MAX(0,SUM(I18:K20*$AD$11:$AF$13)) -> 2.988235474 | AQ19: =MAX(0,SUM(J18:L20*$AD$11:$AF$13)) -> 2.988235474 | AR19: =MAX(0,SUM(K18:M20*$AD$11:$AF$13)) -> 2.988235474 | AS19: =MAX(0,SUM(L18:N20*$AD$11:$AF$13)) -> 2.988235474 | AT19: =MAX(0,SUM(M18:O20*$AD$11:$AF$13)) -> 2.988235474 | AU19: =MAX(0,SUM(N18:P20*$AD$11:$AF$13)) -> 2.988235474 | AV19: =MAX(0,SUM(O18:Q20*$AD$11:$AF$13)) -> 2.854902133 | AW19: =MAX(0,SUM(P18:R20*$AD$11:$AF$13)) -> 2.019607946 | AX19: =MAX(0,SUM(Q18:S20*$AD$11:$AF$13)) -> 1.023529455 | AY19: =MAX(0,SUM(R18:T20*$AD$11:$AF$13)) -> 0.1607843041 | AZ19: =MAX(0,SUM(S18:U20*$AD$11:$AF$13)) -> 0 | BA19: =MAX(0,SUM(T18:V20*$AD$11:$AF$13)) -> 0.3960784525 | BB19: =MAX(0,SUM(U18:W20*$AD$11:$AF$13)) -> 0.3960784525 | BC19: =MAX(0,SUM(V18:X20*$AD$11:$AF$13)) -> 0.3960784525 | BD19: =MAX(0,SUM(W18:Y20*$AD$11:$AF$13)) -> 0 | BE19: =MAX(0,SUM(X18:Z20*$AD$11:$AF$13)) -> 0 | BF19: =MAX(0,SUM(Y18:AA20*$AD$11:$AF$13)) -> 0 | BG19: =MAX(0,SUM(Z18:AB20*$AD$11:$AF$13)) -> 0
A20: 0.0 | B20: 0.0 | C20: 0.1 | D20: 0.3 | E20: 0.1 | F20: 0.0 | G20: 0.0 | H20: 0.0 | I20: 0.0 | J20: 0.0 | K20: 0.0 | L20: 0.0 | M20: 0.0 | N20: 0.0 | O20: 0.0 | P20: 0.0 | Q20: 0.1 | R20: 0.8 | S20: 1.0 | T20: 1.0 | U20: 0.9 | V20: 0.2 | W20: 0.0 | X20: 0.0 | Y20: 0.0 | Z20: 0.0 | AA20: 0.0 | AB20: 0.0 | AH20: =MAX(0,SUM(A19:C21*$AD$11:$AF$13)) -> 0.8862745762 | AI20: =MAX(0,SUM(B19:D21*$AD$11:$AF$13)) -> 1.882353067 | AJ20: =MAX(0,SUM(C19:E21*$AD$11:$AF$13)) -> 2.698039412 | AK20: =MAX(0,SUM(D19:F21*$AD$11:$AF$13)) -> 2.592157066 | AL20: =MAX(0,SUM(E19:G21*$AD$11:$AF$13)) -> 2.376470804 | AM20: =MAX(0,SUM(F19:H21*$AD$11:$AF$13)) -> 2.341176689 | AN20: =MAX(0,SUM(G19:I21*$AD$11:$AF$13)) -> 2.341176689 | AO20: =MAX(0,SUM(H19:J21*$AD$11:$AF$13)) -> 2.105882525 | AP20: =MAX(0,SUM(I19:K21*$AD$11:$AF$13)) -> 1.564705998 | AQ20: =MAX(0,SUM(J19:L21*$AD$11:$AF$13)) -> 1.02352947 | AR20: =MAX(0,SUM(K19:M21*$AD$11:$AF$13)) -> 0.7176471055 | AS20: =MAX(0,SUM(L19:N21*$AD$11:$AF$13)) -> 0.7176471055 | AT20: =MAX(0,SUM(M19:O21*$AD$11:$AF$13)) -> 0.7176471055 | AU20: =MAX(0,SUM(N19:P21*$AD$11:$AF$13)) -> 0.9803922176 | AV20: =MAX(0,SUM(O19:Q21*$AD$11:$AF$13)) -> 1.611764818 | AW20: =MAX(0,SUM(P19:R21*$AD$11:$AF$13)) -> 2.180392295 | AX20: =MAX(0,SUM(Q19:S21*$AD$11:$AF$13)) -> 1.678431481 | AY20: =MAX(0,SUM(R19:T21*$AD$11:$AF$13)) -> 0.8078431785 | AZ20: =MAX(0,SUM(S19:U21*$AD$11:$AF$13)) -> 0 | BA20: =MAX(0,SUM(T19:V21*$AD$11:$AF$13)) -> 0.4588235617 | BB20: =MAX(0,SUM(U19:W21*$AD$11:$AF$13)) -> 0.4588235617 | BC20: =MAX(0,SUM(V19:X21*$AD$11:$AF$13)) -> 0.4588235617 | BD20: =MAX(0,SUM(W19:Y21*$AD$11:$AF$13)) -> 0 | BE20: =MAX(0,SUM(X19:Z21*$AD$11:$AF$13)) -> 0 | BF20: =MAX(0,SUM(Y19:AA21*$AD$11:$AF$13)) -> 0 | BG20: =MAX(0,SUM(Z19:AB21*$AD$11:$AF$13)) -> 0
A21: 0.0 | B21: 0.0 | C21: 0.0 | D21: 0.0 | E21: 0.0 | F21: 0.0 | G21: 0.0 | H21: 0.0 | I21: 0.0 | J21: 0.0 | K21: 0.0 | L21: 0.0 | M21: 0.0 | N21: 0.0 | O21: 0.0 | P21: 0.0 | Q21: 0.0 | R21: 0.2 | S21: 1.0 | T21: 1.0 | U21: 0.9 | V21: 0.0 | W21: 0.0 | X21: 0.0 | Y21: 0.0 | Z21: 0.0 | AA21: 0.0 | AB21: 0.0 | AH21: =MAX(0,SUM(A20:C22*$AD$11:$AF$13)) -> 0.1490196139 | AI21: =MAX(0,SUM(B20:D22*$AD$11:$AF$13)) -> 0.4705882519 | AJ21: =MAX(0,SUM(C20:E22*$AD$11:$AF$13)) -> 0.5215686485 | AK21: =MAX(0,SUM(D20:F22*$AD$11:$AF$13)) -> 0.3725490347 | AL21: =MAX(0,SUM(E20:G22*$AD$11:$AF$13)) -> 0.05098039657 | AM21: =MAX(0,SUM(F20:H22*$AD$11:$AF$13)) -> 0 | AN21: =MAX(0,SUM(G20:I22*$AD$11:$AF$13)) -> 0 | AO21: =MAX(0,SUM(H20:J22*$AD$11:$AF$13)) -> 0 | AP21: =MAX(0,SUM(I20:K22*$AD$11:$AF$13)) -> 0 | AQ21: =MAX(0,SUM(J20:L22*$AD$11:$AF$13)) -> 0 | AR21: =MAX(0,SUM(K20:M22*$AD$11:$AF$13)) -> 0 | AS21: =MAX(0,SUM(L20:N22*$AD$11:$AF$13)) -> 0 | AT21: =MAX(0,SUM(M20:O22*$AD$11:$AF$13)) -> 0 | AU21: =MAX(0,SUM(N20:P22*$AD$11:$AF$13)) -> 0 | AV21: =MAX(0,SUM(O20:Q22*$AD$11:$AF$13)) -> 0.1333333403 | AW21: =MAX(0,SUM(P20:R22*$AD$11:$AF$13)) -> 0.6392157525 | AX21: =MAX(0,SUM(Q20:S22*$AD$11:$AF$13)) -> 0.6392157525 | AY21: =MAX(0,SUM(R20:T22*$AD$11:$AF$13)) -> 0.5058824122 | AZ21: =MAX(0,SUM(S20:U22*$AD$11:$AF$13)) -> 0 | BA21: =MAX(0,SUM(T20:V22*$AD$11:$AF$13)) -> 0.160784319 | BB21: =MAX(0,SUM(U20:W22*$AD$11:$AF$13)) -> 0.160784319 | BC21: =MAX(0,SUM(V20:X22*$AD$11:$AF$13)) -> 0.160784319 | BD21: =MAX(0,SUM(W20:Y22*$AD$11:$AF$13)) -> 0 | BE21: =MAX(0,SUM(X20:Z22*$AD$11:$AF$13)) -> 0 | BF21: =MAX(0,SUM(Y20:AA22*$AD$11:$AF$13)) -> 0 | BG21: =MAX(0,SUM(Z20:AB22*$AD$11:$AF$13)) -> 0
A22: 0.0 | B22: 0.0 | C22: 0.0 | D22: 0.0 | E22: 0.0 | F22: 0.0 | G22: 0.0 | H22: 0.0 | I22: 0.0 | J22: 0.0 | K22: 0.0 | L22: 0.0 | M22: 0.0 | N22: 0.0 | O22: 0.0 | P22: 0.0 | Q22: 0.0 | R22: 0.3 | S22: 1.0 | T22: 1.0 | U22: 0.9 | V22: 0.0 | W22: 0.0 | X22: 0.0 | Y22: 0.0 | Z22: 0.0 | AA22: 0.0 | AB22: 0.0 | AH22: =MAX(0,SUM(A21:C23*$AD$11:$AF$13)) -> 0 | AI22: =MAX(0,SUM(B21:D23*$AD$11:$AF$13)) -> 0 | AJ22: =MAX(0,SUM(C21:E23*$AD$11:$AF$13)) -> 0 | AK22: =MAX(0,SUM(D21:F23*$AD$11:$AF$13)) -> 0 | AL22: =MAX(0,SUM(E21:G23*$AD$11:$AF$13)) -> 0 | AM22: =MAX(0,SUM(F21:H23*$AD$11:$AF$13)) -> 0 | AN22: =MAX(0,SUM(G21:I23*$AD$11:$AF$13)) -> 0 | AO22: =MAX(0,SUM(H21:J23*$AD$11:$AF$13)) -> 0 | AP22: =MAX(0,SUM(I21:K23*$AD$11:$AF$13)) -> 0 | AQ22: =MAX(0,SUM(J21:L23*$AD$11:$AF$13)) -> 0 | AR22: =MAX(0,SUM(K21:M23*$AD$11:$AF$13)) -> 0 | AS22: =MAX(0,SUM(L21:N23*$AD$11:$AF$13)) -> 0 | AT22: =MAX(0,SUM(M21:O23*$AD$11:$AF$13)) -> 0 | AU22: =MAX(0,SUM(N21:P23*$AD$11:$AF$13)) -> 0 | AV22: =MAX(0,SUM(O21:Q23*$AD$11:$AF$13)) -> 0 | AW22: =MAX(0,SUM(P21:R23*$AD$11:$AF$13)) -> 0 | AX22: =MAX(0,SUM(Q21:S23*$AD$11:$AF$13)) -> 0 | AY22: =MAX(0,SUM(R21:T23*$AD$11:$AF$13)) -> 0 | AZ22: =MAX(0,SUM(S21:U23*$AD$11:$AF$13)) -> 0 | BA22: =MAX(0,SUM(T21:V23*$AD$11:$AF$13)) -> 0 | BB22: =MAX(0,SUM(U21:W23*$AD$11:$AF$13)) -> 0 | BC22: =MAX(0,SUM(V21:X23*$AD$11:$AF$13)) -> 0 | BD22: =MAX(0,SUM(W21:Y23*$AD$11:$AF$13)) -> 0 | BE22: =MAX(0,SUM(X21:Z23*$AD$11:$AF$13)) -> 0 | BF22: =MAX(0,SUM(Y21:AA23*$AD$11:$AF$13)) -> 0 | BG22: =MAX(0,SUM(Z21:AB23*$AD$11:$AF$13)) -> 0
A23: 0.0 | B23: 0.0 | C23: 0.0 | D23: 0.0 | E23: 0.0 | F23: 0.0 | G23: 0.0 | H23: 0.0 | I23: 0.0 | J23: 0.0 | K23: 0.0 | L23: 0.0 | M23: 0.0 | N23: 0.0 | O23: 0.0 | P23: 0.0 | Q23: 0.0 | R23: 0.5 | S23: 1.0 | T23: 1.0 | U23: 0.9 | V23: 0.0 | W23: 0.0 | X23: 0.0 | Y23: 0.0 | Z23: 0.0 | AA23: 0.0 | AB23: 0.0 | AH23: =MAX(0,SUM(A22:C24*$AD$11:$AF$13)) -> 0 | AI23: =MAX(0,SUM(B22:D24*$AD$11:$AF$13)) -> 0 | AJ23: =MAX(0,SUM(C22:E24*$AD$11:$AF$13)) -> 0 | AK23: =MAX(0,SUM(D22:F24*$AD$11:$AF$13)) -> 0 | AL23: =MAX(0,SUM(E22:G24*$AD$11:$AF$13)) -> 0 | AM23: =MAX(0,SUM(F22:H24*$AD$11:$AF$13)) -> 0 | AN23: =MAX(0,SUM(G22:I24*$AD$11:$AF$13)) -> 0 | AO23: =MAX(0,SUM(H22:J24*$AD$11:$AF$13)) -> 0 | AP23: =MAX(0,SUM(I22:K24*$AD$11:$AF$13)) -> 0 | AQ23: =MAX(0,SUM(J22:L24*$AD$11:$AF$13)) -> 0 | AR23: =MAX(0,SUM(K22:M24*$AD$11:$AF$13)) -> 0 | AS23: =MAX(0,SUM(L22:N24*$AD$11:$AF$13)) -> 0 | AT23: =MAX(0,SUM(M22:O24*$AD$11:$AF$13)) -> 0 | AU23: =MAX(0,SUM(N22:P24*$AD$11:$AF$13)) -> 0 | AV23: =MAX(0,SUM(O22:Q24*$AD$11:$AF$13)) -> 0 | AW23: =MAX(0,SUM(P22:R24*$AD$11:$AF$13)) -> 0.09019607306 | AX23: =MAX(0,SUM(Q22:S24*$AD$11:$AF$13)) -> 0.3294117749 | AY23: =MAX(0,SUM(R22:T24*$AD$11:$AF$13)) -> 0.3294117749 | AZ23: =MAX(0,SUM(S22:U24*$AD$11:$AF$13)) -> 0 | BA23: =MAX(0,SUM(T22:V24*$AD$11:$AF$13)) -> 0 | BB23: =MAX(0,SUM(U22:W24*$AD$11:$AF$13)) -> 0 | BC23: =MAX(0,SUM(V22:X24*$AD$11:$AF$13)) -> 0 | BD23: =MAX(0,SUM(W22:Y24*$AD$11:$AF$13)) -> 0 | BE23: =MAX(0,SUM(X22:Z24*$AD$11:$AF$13)) -> 0 | BF23: =MAX(0,SUM(Y22:AA24*$AD$11:$AF$13)) -> 0 | BG23: =MAX(0,SUM(Z22:AB24*$AD$11:$AF$13)) -> 0
A24: 0.0 | B24: 0.0 | C24: 0.0 | D24: 0.0 | E24: 0.0 | F24: 0.0 | G24: 0.0 | H24: 0.0 | I24: 0.0 | J24: 0.0 | K24: 0.0 | L24: 0.4 | M24: 0.4 | N24: 0.3 | O24: 0.5 | P24: 0.2 | Q24: 0.0 | R24: 0.0 | S24: 1.0 | T24: 1.0 | U24: 0.9 | V24: 0.0 | W24: 0.0 | X24: 0.0 | Y24: 0.0 | Z24: 0.0 | AA24: 0.0 | AB24: 0.0 | AH24: =MAX(0,SUM(A23:C25*$AD$11:$AF$13)) -> 0 | AI24: =MAX(0,SUM(B23:D25*$AD$11:$AF$13)) -> 0 | AJ24: =MAX(0,SUM(C23:E25*$AD$11:$AF$13)) -> 0 | AK24: =MAX(0,SUM(D23:F25*$AD$11:$AF$13)) -> 0 | AL24: =MAX(0,SUM(E23:G25*$AD$11:$AF$13)) -> 0 | AM24: =MAX(0,SUM(F23:H25*$AD$11:$AF$13)) -> 0 | AN24: =MAX(0,SUM(G23:I25*$AD$11:$AF$13)) -> 0 | AO24: =MAX(0,SUM(H23:J25*$AD$11:$AF$13)) -> 0 | AP24: =MAX(0,SUM(I23:K25*$AD$11:$AF$13)) -> 0 | AQ24: =MAX(0,SUM(J23:L25*$AD$11:$AF$13)) -> 0 | AR24: =MAX(0,SUM(K23:M25*$AD$11:$AF$13)) -> 0 | AS24: =MAX(0,SUM(L23:N25*$AD$11:$AF$13)) -> 0 | AT24: =MAX(0,SUM(M23:O25*$AD$11:$AF$13)) -> 0 | AU24: =MAX(0,SUM(N23:P25*$AD$11:$AF$13)) -> 0 | AV24: =MAX(0,SUM(O23:Q25*$AD$11:$AF$13)) -> 0 | AW24: =MAX(0,SUM(P23:R25*$AD$11:$AF$13)) -> 0 | AX24: =MAX(0,SUM(Q23:S25*$AD$11:$AF$13)) -> 0 | AY24: =MAX(0,SUM(R23:T25*$AD$11:$AF$13)) -> 0 | AZ24: =MAX(0,SUM(S23:U25*$AD$11:$AF$13)) -> 0 | BA24: =MAX(0,SUM(T23:V25*$AD$11:$AF$13)) -> 0 | BB24: =MAX(0,SUM(U23:W25*$AD$11:$AF$13)) -> 0 | BC24: =MAX(0,SUM(V23:X25*$AD$11:$AF$13)) -> 0 | BD24: =MAX(0,SUM(W23:Y25*$AD$11:$AF$13)) -> 0 | BE24: =MAX(0,SUM(X23:Z25*$AD$11:$AF$13)) -> 0 | BF24: =MAX(0,SUM(Y23:AA25*$AD$11:$AF$13)) -> 0 | BG24: =MAX(0,SUM(Z23:AB25*$AD$11:$AF$13)) -> 0
A25: 0.0 | B25: 0.0 | C25: 0.0 | D25: 0.4 | E25: 0.5 | F25: 0.9 | G25: 0.9 | H25: 0.9 | I25: 0.9 | J25: 0.9 | K25: 0.9 | L25: 1.0 | M25: 1.0 | N25: 1.0 | O25: 1.0 | P25: 1.0 | Q25: 0.9 | R25: 0.7 | S25: 1.0 | T25: 1.0 | U25: 0.9 | V25: 0.0 | W25: 0.0 | X25: 0.0 | Y25: 0.0 | Z25: 0.0 | AA25: 0.0 | AB25: 0.0 | AH25: =MAX(0,SUM(A24:C26*$AD$11:$AF$13)) -> 0 | AI25: =MAX(0,SUM(B24:D26*$AD$11:$AF$13)) -> 0 | AJ25: =MAX(0,SUM(C24:E26*$AD$11:$AF$13)) -> 0 | AK25: =MAX(0,SUM(D24:F26*$AD$11:$AF$13)) -> 0 | AL25: =MAX(0,SUM(E24:G26*$AD$11:$AF$13)) -> 0 | AM25: =MAX(0,SUM(F24:H26*$AD$11:$AF$13)) -> 0 | AN25: =MAX(0,SUM(G24:I26*$AD$11:$AF$13)) -> 0 | AO25: =MAX(0,SUM(H24:J26*$AD$11:$AF$13)) -> 0 | AP25: =MAX(0,SUM(I24:K26*$AD$11:$AF$13)) -> 0 | AQ25: =MAX(0,SUM(J24:L26*$AD$11:$AF$13)) -> 0 | AR25: =MAX(0,SUM(K24:M26*$AD$11:$AF$13)) -> 0 | AS25: =MAX(0,SUM(L24:N26*$AD$11:$AF$13)) -> 0 | AT25: =MAX(0,SUM(M24:O26*$AD$11:$AF$13)) -> 0 | AU25: =MAX(0,SUM(N24:P26*$AD$11:$AF$13)) -> 0 | AV25: =MAX(0,SUM(O24:Q26*$AD$11:$AF$13)) -> 0 | AW25: =MAX(0,SUM(P24:R26*$AD$11:$AF$13)) -> 0 | AX25: =MAX(0,SUM(Q24:S26*$AD$11:$AF$13)) -> 0 | AY25: =MAX(0,SUM(R24:T26*$AD$11:$AF$13)) -> 0 | AZ25: =MAX(0,SUM(S24:U26*$AD$11:$AF$13)) -> 0 | BA25: =MAX(0,SUM(T24:V26*$AD$11:$AF$13)) -> 0 | BB25: =MAX(0,SUM(U24:W26*$AD$11:$AF$13)) -> 0 | BC25: =MAX(0,SUM(V24:X26*$AD$11:$AF$13)) -> 0 | BD25: =MAX(0,SUM(W24:Y26*$AD$11:$AF$13)) -> 0 | BE25: =MAX(0,SUM(X24:Z26*$AD$11:$AF$13)) -> 0 | BF25: =MAX(0,SUM(Y24:AA26*$AD$11:$AF$13)) -> 0 | BG25: =MAX(0,SUM(Z24:AB26*$AD$11:$AF$13)) -> 0
A26: 0.0 | B26: 0.0 | C26: 0.5 | D26: 1.0 | E26: 1.0 | F26: 1.0 | G26: 1.0 | H26: 1.0 | I26: 1.0 | J26: 1.0 | K26: 1.0 | L26: 1.0 | M26: 1.0 | N26: 1.0 | O26: 1.0 | P26: 1.0 | Q26: 1.0 | R26: 1.0 | S26: 1.0 | T26: 1.0 | U26: 0.9 | V26: 0.0 | W26: 0.0 | X26: 0.0 | Y26: 0.0 | Z26: 0.0 | AA26: 0.0 | AB26: 0.0 | AH26: =MAX(0,SUM(A25:C27*$AD$11:$AF$13)) -> 0 | AI26: =MAX(0,SUM(B25:D27*$AD$11:$AF$13)) -> 0 | AJ26: =MAX(0,SUM(C25:E27*$AD$11:$AF$13)) -> 0 | AK26: =MAX(0,SUM(D25:F27*$AD$11:$AF$13)) -> 0 | AL26: =MAX(0,SUM(E25:G27*$AD$11:$AF$13)) -> 0 | AM26: =MAX(0,SUM(F25:H27*$AD$11:$AF$13)) -> 0 | AN26: =MAX(0,SUM(G25:I27*$AD$11:$AF$13)) -> 0 | AO26: =MAX(0,SUM(H25:J27*$AD$11:$AF$13)) -> 0 | AP26: =MAX(0,SUM(I25:K27*$AD$11:$AF$13)) -> 0 | AQ26: =MAX(0,SUM(J25:L27*$AD$11:$AF$13)) -> 0 | AR26: =MAX(0,SUM(K25:M27*$AD$11:$AF$13)) -> 0 | AS26: =MAX(0,SUM(L25:N27*$AD$11:$AF$13)) -> 0 | AT26: =MAX(0,SUM(M25:O27*$AD$11:$AF$13)) -> 0 | AU26: =MAX(0,SUM(N25:P27*$AD$11:$AF$13)) -> 0 | AV26: =MAX(0,SUM(O25:Q27*$AD$11:$AF$13)) -> 0.01568627357 | AW26: =MAX(0,SUM(P25:R27*$AD$11:$AF$13)) -> 0 | AX26: =MAX(0,SUM(Q25:S27*$AD$11:$AF$13)) -> 0 | AY26: =MAX(0,SUM(R25:T27*$AD$11:$AF$13)) -> 0.2941176295 | AZ26: =MAX(0,SUM(S25:U27*$AD$11:$AF$13)) -> 1.46274519 | BA26: =MAX(0,SUM(T25:V27*$AD$11:$AF$13)) -> 1.46274519 | BB26: =MAX(0,SUM(U25:W27*$AD$11:$AF$13)) -> 0.9176471233 | BC26: =MAX(0,SUM(V25:X27*$AD$11:$AF$13)) -> 0 | BD26: =MAX(0,SUM(W25:Y27*$AD$11:$AF$13)) -> 0 | BE26: =MAX(0,SUM(X25:Z27*$AD$11:$AF$13)) -> 0 | BF26: =MAX(0,SUM(Y25:AA27*$AD$11:$AF$13)) -> 0 | BG26: =MAX(0,SUM(Z25:AB27*$AD$11:$AF$13)) -> 0
A27: 0.0 | B27: 0.0 | C27: 0.9 | D27: 1.0 | E27: 1.0 | F27: 1.0 | G27: 1.0 | H27: 1.0 | I27: 1.0 | J27: 1.0 | K27: 1.0 | L27: 1.0 | M27: 1.0 | N27: 1.0 | O27: 1.0 | P27: 1.0 | Q27: 0.9 | R27: 1.0 | S27: 1.0 | T27: 0.5 | U27: 0.0 | V27: 0.0 | W27: 0.0 | X27: 0.0 | Y27: 0.0 | Z27: 0.0 | AA27: 0.0 | AB27: 0.0 | AH27: =MAX(0,SUM(A26:C28*$AD$11:$AF$13)) -> 0.4000000209 | AI27: =MAX(0,SUM(B26:D28*$AD$11:$AF$13)) -> 1.062745169 | AJ27: =MAX(0,SUM(C26:E28*$AD$11:$AF$13)) -> 2.007843263 | AK27: =MAX(0,SUM(D26:F28*$AD$11:$AF$13)) -> 2.603921734 | AL27: =MAX(0,SUM(E26:G28*$AD$11:$AF$13)) -> 2.937255077 | AM27: =MAX(0,SUM(F26:H28*$AD$11:$AF$13)) -> 2.988235474 | AN27: =MAX(0,SUM(G26:I28*$AD$11:$AF$13)) -> 2.988235474 | AO27: =MAX(0,SUM(H26:J28*$AD$11:$AF$13)) -> 2.988235474 | AP27: =MAX(0,SUM(I26:K28*$AD$11:$AF$13)) -> 2.988235474 | AQ27: =MAX(0,SUM(J26:L28*$AD$11:$AF$13)) -> 2.988235474 | AR27: =MAX(0,SUM(K26:M28*$AD$11:$AF$13)) -> 2.988235474 | AS27: =MAX(0,SUM(L26:N28*$AD$11:$AF$13)) -> 2.988235474 | AT27: =MAX(0,SUM(M26:O28*$AD$11:$AF$13)) -> 2.988235474 | AU27: =MAX(0,SUM(N26:P28*$AD$11:$AF$13)) -> 2.988235474 | AV27: =MAX(0,SUM(O26:Q28*$AD$11:$AF$13)) -> 2.988235474 | AW27: =MAX(0,SUM(P26:R28*$AD$11:$AF$13)) -> 2.988235474 | AX27: =MAX(0,SUM(Q26:S28*$AD$11:$AF$13)) -> 2.988235474 | AY27: =MAX(0,SUM(R26:T28*$AD$11:$AF$13)) -> 2.988235474 | AZ27: =MAX(0,SUM(S26:U28*$AD$11:$AF$13)) -> 2.909804106 | BA27: =MAX(0,SUM(T26:V28*$AD$11:$AF$13)) -> 1.913725615 | BB27: =MAX(0,SUM(U26:W28*$AD$11:$AF$13)) -> 0.9176471233 | BC27: =MAX(0,SUM(V26:X28*$AD$11:$AF$13)) -> 0 | BD27: =MAX(0,SUM(W26:Y28*$AD$11:$AF$13)) -> 0 | BE27: =MAX(0,SUM(X26:Z28*$AD$11:$AF$13)) -> 0 | BF27: =MAX(0,SUM(Y26:AA28*$AD$11:$AF$13)) -> 0 | BG27: =MAX(0,SUM(Z26:AB28*$AD$11:$AF$13)) -> 0
A28: 0.0 | B28: 0.0 | C28: 0.1 | D28: 0.3 | E28: 0.1 | F28: 0.0 | G28: 0.0 | H28: 0.0 | I28: 0.0 | J28: 0.0 | K28: 0.0 | L28: 0.0 | M28: 0.0 | N28: 0.0 | O28: 0.0 | P28: 0.0 | Q28: 0.0 | R28: 0.0 | S28: 0.0 | T28: 0.0 | U28: 0.0 | V28: 0.0 | W28: 0.0 | X28: 0.0 | Y28: 0.0 | Z28: 0.0 | AA28: 0.0 | AB28: 0.0 | AH28: =MAX(0,SUM(A27:C29*$AD$11:$AF$13)) -> 0.8862745762 | AI28: =MAX(0,SUM(B27:D29*$AD$11:$AF$13)) -> 1.882353067 | AJ28: =MAX(0,SUM(C27:E29*$AD$11:$AF$13)) -> 2.878431559 | AK28: =MAX(0,SUM(D27:F29*$AD$11:$AF$13)) -> 2.988235474 | AL28: =MAX(0,SUM(E27:G29*$AD$11:$AF$13)) -> 2.988235474 | AM28: =MAX(0,SUM(F27:H29*$AD$11:$AF$13)) -> 2.988235474 | AN28: =MAX(0,SUM(G27:I29*$AD$11:$AF$13)) -> 2.988235474 | AO28: =MAX(0,SUM(H27:J29*$AD$11:$AF$13)) -> 2.988235474 | AP28: =MAX(0,SUM(I27:K29*$AD$11:$AF$13)) -> 2.988235474 | AQ28: =MAX(0,SUM(J27:L29*$AD$11:$AF$13)) -> 2.988235474 | AR28: =MAX(0,SUM(K27:M29*$AD$11:$AF$13)) -> 2.988235474 | AS28: =MAX(0,SUM(L27:N29*$AD$11:$AF$13)) -> 2.988235474 | AT28: =MAX(0,SUM(M27:O29*$AD$11:$AF$13)) -> 2.988235474 | AU28: =MAX(0,SUM(N27:P29*$AD$11:$AF$13)) -> 2.988235474 | AV28: =MAX(0,SUM(O27:Q29*$AD$11:$AF$13)) -> 2.862745285 | AW28: =MAX(0,SUM(P27:R29*$AD$11:$AF$13)) -> 2.862745285 | AX28: =MAX(0,SUM(Q27:S29*$AD$11:$AF$13)) -> 2.862745285 | AY28: =MAX(0,SUM(R27:T29*$AD$11:$AF$13)) -> 2.443137407 | AZ28: =MAX(0,SUM(S27:U29*$AD$11:$AF$13)) -> 1.447058916 | BA28: =MAX(0,SUM(T27:V29*$AD$11:$AF$13)) -> 0.4509804249 | BB28: =MAX(0,SUM(U27:W29*$AD$11:$AF$13)) -> 0 | BC28: =MAX(0,SUM(V27:X29*$AD$11:$AF$13)) -> 0 | BD28: =MAX(0,SUM(W27:Y29*$AD$11:$AF$13)) -> 0 | BE28: =MAX(0,SUM(X27:Z29*$AD$11:$AF$13)) -> 0 | BF28: =MAX(0,SUM(Y27:AA29*$AD$11:$AF$13)) -> 0 | BG28: =MAX(0,SUM(Z27:AB29*$AD$11:$AF$13)) -> 0
A29: 0.0 | B29: 0.0 | C29: 0.0 | D29: 0.0 | E29: 0.0 | F29: 0.0 | G29: 0.0 | H29: 0.0 | I29: 0.0 | J29: 0.0 | K29: 0.0 | L29: 0.0 | M29: 0.0 | N29: 0.0 | O29: 0.0 | P29: 0.0 | Q29: 0.0 | R29: 0.0 | S29: 0.0 | T29: 0.0 | U29: 0.0 | V29: 0.0 | W29: 0.0 | X29: 0.0 | Y29: 0.0 | Z29: 0.0 | AA29: 0.0 | AB29: 0.0
AH32: =MAX(0,SUM(A2:C4*$AD$38:$AF$40)) -> 0 | AI32: =MAX(0,SUM(B2:D4*$AD$38:$AF$40)) -> 0 | AJ32: =MAX(0,SUM(C2:E4*$AD$38:$AF$40)) -> 0 | AK32: =MAX(0,SUM(D2:F4*$AD$38:$AF$40)) -> 0 | AL32: =MAX(0,SUM(E2:G4*$AD$38:$AF$40)) -> 0 | AM32: =MAX(0,SUM(F2:H4*$AD$38:$AF$40)) -> 0 | AN32: =MAX(0,SUM(G2:I4*$AD$38:$AF$40)) -> 0 | AO32: =MAX(0,SUM(H2:J4*$AD$38:$AF$40)) -> 0 | AP32: =MAX(0,SUM(I2:K4*$AD$38:$AF$40)) -> 0 | AQ32: =MAX(0,SUM(J2:L4*$AD$38:$AF$40)) -> 0 | AR32: =MAX(0,SUM(K2:M4*$AD$38:$AF$40)) -> 0 | AS32: =MAX(0,SUM(L2:N4*$AD$38:$AF$40)) -> 0 | AT32: =MAX(0,SUM(M2:O4*$AD$38:$AF$40)) -> 0 | AU32: =MAX(0,SUM(N2:P4*$AD$38:$AF$40)) -> 0 | AV32: =MAX(0,SUM(O2:Q4*$AD$38:$AF$40)) -> 0 | AW32: =MAX(0,SUM(P2:R4*$AD$38:$AF$40)) -> 0 | AX32: =MAX(0,SUM(Q2:S4*$AD$38:$AF$40)) -> 0 | AY32: =MAX(0,SUM(R2:T4*$AD$38:$AF$40)) -> 0 | AZ32: =MAX(0,SUM(S2:U4*$AD$38:$AF$40)) -> 0 | BA32: =MAX(0,SUM(T2:V4*$AD$38:$AF$40)) -> 0 | BB32: =MAX(0,SUM(U2:W4*$AD$38:$AF$40)) -> 0 | BC32: =MAX(0,SUM(V2:X4*$AD$38:$AF$40)) -> 0 | BD32: =MAX(0,SUM(W2:Y4*$AD$38:$AF$40)) -> 0 | BE32: =MAX(0,SUM(X2:Z4*$AD$38:$AF$40)) -> 0 | BF32: =MAX(0,SUM(Y2:AA4*$AD$38:$AF$40)) -> 0 | BG32: =MAX(0,SUM(Z2:AB4*$AD$38:$AF$40)) -> 0
AD33: Detects vertical | AH33: =MAX(0,SUM(A3:C5*$AD$38:$AF$40)) -> 0 | AI33: =MAX(0,SUM(B3:D5*$AD$38:$AF$40)) -> 0 | AJ33: =MAX(0,SUM(C3:E5*$AD$38:$AF$40)) -> 0 | AK33: =MAX(0,SUM(D3:F5*$AD$38:$AF$40)) -> 0 | AL33: =MAX(0,SUM(E3:G5*$AD$38:$AF$40)) -> 0 | AM33: =MAX(0,SUM(F3:H5*$AD$38:$AF$40)) -> 0 | AN33: =MAX(0,SUM(G3:I5*$AD$38:$AF$40)) -> 0 | AO33: =MAX(0,SUM(H3:J5*$AD$38:$AF$40)) -> 0 | AP33: =MAX(0,SUM(I3:K5*$AD$38:$AF$40)) -> 0 | AQ33: =MAX(0,SUM(J3:L5*$AD$38:$AF$40)) -> 0 | AR33: =MAX(0,SUM(K3:M5*$AD$38:$AF$40)) -> 0 | AS33: =MAX(0,SUM(L3:N5*$AD$38:$AF$40)) -> 0 | AT33: =MAX(0,SUM(M3:O5*$AD$38:$AF$40)) -> 0 | AU33: =MAX(0,SUM(N3:P5*$AD$38:$AF$40)) -> 0 | AV33: =MAX(0,SUM(O3:Q5*$AD$38:$AF$40)) -> 0 | AW33: =MAX(0,SUM(P3:R5*$AD$38:$AF$40)) -> 0 | AX33: =MAX(0,SUM(Q3:S5*$AD$38:$AF$40)) -> 0 | AY33: =MAX(0,SUM(R3:T5*$AD$38:$AF$40)) -> 0 | AZ33: =MAX(0,SUM(S3:U5*$AD$38:$AF$40)) -> 0 | BA33: =MAX(0,SUM(T3:V5*$AD$38:$AF$40)) -> 0 | BB33: =MAX(0,SUM(U3:W5*$AD$38:$AF$40)) -> 0 | BC33: =MAX(0,SUM(V3:X5*$AD$38:$AF$40)) -> 0 | BD33: =MAX(0,SUM(W3:Y5*$AD$38:$AF$40)) -> 0 | BE33: =MAX(0,SUM(X3:Z5*$AD$38:$AF$40)) -> 0 | BF33: =MAX(0,SUM(Y3:AA5*$AD$38:$AF$40)) -> 0 | BG33: =MAX(0,SUM(Z3:AB5*$AD$38:$AF$40)) -> 0
AD34: lines | AH34: =MAX(0,SUM(A4:C6*$AD$38:$AF$40)) -> 0 | AI34: =MAX(0,SUM(B4:D6*$AD$38:$AF$40)) -> 0 | AJ34: =MAX(0,SUM(C4:E6*$AD$38:$AF$40)) -> 0 | AK34: =MAX(0,SUM(D4:F6*$AD$38:$AF$40)) -> 0 | AL34: =MAX(0,SUM(E4:G6*$AD$38:$AF$40)) -> 0 | AM34: =MAX(0,SUM(F4:H6*$AD$38:$AF$40)) -> 0 | AN34: =MAX(0,SUM(G4:I6*$AD$38:$AF$40)) -> 0 | AO34: =MAX(0,SUM(H4:J6*$AD$38:$AF$40)) -> 0 | AP34: =MAX(0,SUM(I4:K6*$AD$38:$AF$40)) -> 0 | AQ34: =MAX(0,SUM(J4:L6*$AD$38:$AF$40)) -> 0 | AR34: =MAX(0,SUM(K4:M6*$AD$38:$AF$40)) -> 0 | AS34: =MAX(0,SUM(L4:N6*$AD$38:$AF$40)) -> 0 | AT34: =MAX(0,SUM(M4:O6*$AD$38:$AF$40)) -> 0 | AU34: =MAX(0,SUM(N4:P6*$AD$38:$AF$40)) -> 0 | AV34: =MAX(0,SUM(O4:Q6*$AD$38:$AF$40)) -> 0 | AW34: =MAX(0,SUM(P4:R6*$AD$38:$AF$40)) -> 0 | AX34: =MAX(0,SUM(Q4:S6*$AD$38:$AF$40)) -> 0 | AY34: =MAX(0,SUM(R4:T6*$AD$38:$AF$40)) -> 0 | AZ34: =MAX(0,SUM(S4:U6*$AD$38:$AF$40)) -> 0 | BA34: =MAX(0,SUM(T4:V6*$AD$38:$AF$40)) -> 0 | BB34: =MAX(0,SUM(U4:W6*$AD$38:$AF$40)) -> 0 | BC34: =MAX(0,SUM(V4:X6*$AD$38:$AF$40)) -> 0 | BD34: =MAX(0,SUM(W4:Y6*$AD$38:$AF$40)) -> 0 | BE34: =MAX(0,SUM(X4:Z6*$AD$38:$AF$40)) -> 0 | BF34: =MAX(0,SUM(Y4:AA6*$AD$38:$AF$40)) -> 0 | BG34: =MAX(0,SUM(Z4:AB6*$AD$38:$AF$40)) -> 0
A35: SOURCE: FASTAI | AH35: =MAX(0,SUM(A5:C7*$AD$38:$AF$40)) -> 0 | AI35: =MAX(0,SUM(B5:D7*$AD$38:$AF$40)) -> 0 | AJ35: =MAX(0,SUM(C5:E7*$AD$38:$AF$40)) -> 0 | AK35: =MAX(0,SUM(D5:F7*$AD$38:$AF$40)) -> 0 | AL35: =MAX(0,SUM(E5:G7*$AD$38:$AF$40)) -> 0 | AM35: =MAX(0,SUM(F5:H7*$AD$38:$AF$40)) -> 0 | AN35: =MAX(0,SUM(G5:I7*$AD$38:$AF$40)) -> 0 | AO35: =MAX(0,SUM(H5:J7*$AD$38:$AF$40)) -> 0 | AP35: =MAX(0,SUM(I5:K7*$AD$38:$AF$40)) -> 0 | AQ35: =MAX(0,SUM(J5:L7*$AD$38:$AF$40)) -> 0 | AR35: =MAX(0,SUM(K5:M7*$AD$38:$AF$40)) -> 0 | AS35: =MAX(0,SUM(L5:N7*$AD$38:$AF$40)) -> 0 | AT35: =MAX(0,SUM(M5:O7*$AD$38:$AF$40)) -> 0 | AU35: =MAX(0,SUM(N5:P7*$AD$38:$AF$40)) -> 0 | AV35: =MAX(0,SUM(O5:Q7*$AD$38:$AF$40)) -> 0 | AW35: =MAX(0,SUM(P5:R7*$AD$38:$AF$40)) -> 0 | AX35: =MAX(0,SUM(Q5:S7*$AD$38:$AF$40)) -> 0 | AY35: =MAX(0,SUM(R5:T7*$AD$38:$AF$40)) -> 0 | AZ35: =MAX(0,SUM(S5:U7*$AD$38:$AF$40)) -> 0 | BA35: =MAX(0,SUM(T5:V7*$AD$38:$AF$40)) -> 0 | BB35: =MAX(0,SUM(U5:W7*$AD$38:$AF$40)) -> 0 | BC35: =MAX(0,SUM(V5:X7*$AD$38:$AF$40)) -> 0 | BD35: =MAX(0,SUM(W5:Y7*$AD$38:$AF$40)) -> 0 | BE35: =MAX(0,SUM(X5:Z7*$AD$38:$AF$40)) -> 0 | BF35: =MAX(0,SUM(Y5:AA7*$AD$38:$AF$40)) -> 0 | BG35: =MAX(0,SUM(Z5:AB7*$AD$38:$AF$40)) -> 0
AD36: filter 2 | AH36: =MAX(0,SUM(A6:C8*$AD$38:$AF$40)) -> 0 | AI36: =MAX(0,SUM(B6:D8*$AD$38:$AF$40)) -> 0 | AJ36: =MAX(0,SUM(C6:E8*$AD$38:$AF$40)) -> 0 | AK36: =MAX(0,SUM(D6:F8*$AD$38:$AF$40)) -> 0 | AL36: =MAX(0,SUM(E6:G8*$AD$38:$AF$40)) -> 0 | AM36: =MAX(0,SUM(F6:H8*$AD$38:$AF$40)) -> 0 | AN36: =MAX(0,SUM(G6:I8*$AD$38:$AF$40)) -> 0 | AO36: =MAX(0,SUM(H6:J8*$AD$38:$AF$40)) -> 0 | AP36: =MAX(0,SUM(I6:K8*$AD$38:$AF$40)) -> 0 | AQ36: =MAX(0,SUM(J6:L8*$AD$38:$AF$40)) -> 0 | AR36: =MAX(0,SUM(K6:M8*$AD$38:$AF$40)) -> 0 | AS36: =MAX(0,SUM(L6:N8*$AD$38:$AF$40)) -> 0 | AT36: =MAX(0,SUM(M6:O8*$AD$38:$AF$40)) -> 0 | AU36: =MAX(0,SUM(N6:P8*$AD$38:$AF$40)) -> 0 | AV36: =MAX(0,SUM(O6:Q8*$AD$38:$AF$40)) -> 0 | AW36: =MAX(0,SUM(P6:R8*$AD$38:$AF$40)) -> 0 | AX36: =MAX(0,SUM(Q6:S8*$AD$38:$AF$40)) -> 0 | AY36: =MAX(0,SUM(R6:T8*$AD$38:$AF$40)) -> 0 | AZ36: =MAX(0,SUM(S6:U8*$AD$38:$AF$40)) -> 0 | BA36: =MAX(0,SUM(T6:V8*$AD$38:$AF$40)) -> 0 | BB36: =MAX(0,SUM(U6:W8*$AD$38:$AF$40)) -> 0 | BC36: =MAX(0,SUM(V6:X8*$AD$38:$AF$40)) -> 0 | BD36: =MAX(0,SUM(W6:Y8*$AD$38:$AF$40)) -> 0 | BE36: =MAX(0,SUM(X6:Z8*$AD$38:$AF$40)) -> 0 | BF36: =MAX(0,SUM(Y6:AA8*$AD$38:$AF$40)) -> 0 | BG36: =MAX(0,SUM(Z6:AB8*$AD$38:$AF$40)) -> 0
AH37: =MAX(0,SUM(A7:C9*$AD$38:$AF$40)) -> 0 | AI37: =MAX(0,SUM(B7:D9*$AD$38:$AF$40)) -> 0 | AJ37: =MAX(0,SUM(C7:E9*$AD$38:$AF$40)) -> 0 | AK37: =MAX(0,SUM(D7:F9*$AD$38:$AF$40)) -> 0 | AL37: =MAX(0,SUM(E7:G9*$AD$38:$AF$40)) -> 0 | AM37: =MAX(0,SUM(F7:H9*$AD$38:$AF$40)) -> 0 | AN37: =MAX(0,SUM(G7:I9*$AD$38:$AF$40)) -> 0 | AO37: =MAX(0,SUM(H7:J9*$AD$38:$AF$40)) -> 0 | AP37: =MAX(0,SUM(I7:K9*$AD$38:$AF$40)) -> 0 | AQ37: =MAX(0,SUM(J7:L9*$AD$38:$AF$40)) -> 0 | AR37: =MAX(0,SUM(K7:M9*$AD$38:$AF$40)) -> 0 | AS37: =MAX(0,SUM(L7:N9*$AD$38:$AF$40)) -> 0.07843139768 | AT37: =MAX(0,SUM(M7:O9*$AD$38:$AF$40)) -> 0 | AU37: =MAX(0,SUM(N7:P9*$AD$38:$AF$40)) -> 0.0627450943 | AV37: =MAX(0,SUM(O7:Q9*$AD$38:$AF$40)) -> 0.4627451301 | AW37: =MAX(0,SUM(P7:R9*$AD$38:$AF$40)) -> 0.2392157018 | AX37: =MAX(0,SUM(Q7:S9*$AD$38:$AF$40)) -> 0 | AY37: =MAX(0,SUM(R7:T9*$AD$38:$AF$40)) -> 0 | AZ37: =MAX(0,SUM(S7:U9*$AD$38:$AF$40)) -> 0 | BA37: =MAX(0,SUM(T7:V9*$AD$38:$AF$40)) -> 0 | BB37: =MAX(0,SUM(U7:W9*$AD$38:$AF$40)) -> 0 | BC37: =MAX(0,SUM(V7:X9*$AD$38:$AF$40)) -> 0 | BD37: =MAX(0,SUM(W7:Y9*$AD$38:$AF$40)) -> 0 | BE37: =MAX(0,SUM(X7:Z9*$AD$38:$AF$40)) -> 0 | BF37: =MAX(0,SUM(Y7:AA9*$AD$38:$AF$40)) -> 0 | BG37: =MAX(0,SUM(Z7:AB9*$AD$38:$AF$40)) -> 0
AD38: 1 | AE38: 0 | AF38: -1 | AH38: =MAX(0,SUM(A8:C10*$AD$38:$AF$40)) -> 0 | AI38: =MAX(0,SUM(B8:D10*$AD$38:$AF$40)) -> 0 | AJ38: =MAX(0,SUM(C8:E10*$AD$38:$AF$40)) -> 0 | AK38: =MAX(0,SUM(D8:F10*$AD$38:$AF$40)) -> 0 | AL38: =MAX(0,SUM(E8:G10*$AD$38:$AF$40)) -> 0 | AM38: =MAX(0,SUM(F8:H10*$AD$38:$AF$40)) -> 0 | AN38: =MAX(0,SUM(G8:I10*$AD$38:$AF$40)) -> 0 | AO38: =MAX(0,SUM(H8:J10*$AD$38:$AF$40)) -> 0 | AP38: =MAX(0,SUM(I8:K10*$AD$38:$AF$40)) -> 0 | AQ38: =MAX(0,SUM(J8:L10*$AD$38:$AF$40)) -> 0 | AR38: =MAX(0,SUM(K8:M10*$AD$38:$AF$40)) -> 0 | AS38: =MAX(0,SUM(L8:N10*$AD$38:$AF$40)) -> 0.09019610286 | AT38: =MAX(0,SUM(M8:O10*$AD$38:$AF$40)) -> 0 | AU38: =MAX(0,SUM(N8:P10*$AD$38:$AF$40)) -> 0.07450979948 | AV38: =MAX(0,SUM(O8:Q10*$AD$38:$AF$40)) -> 0.5372549295 | AW38: =MAX(0,SUM(P8:R10*$AD$38:$AF$40)) -> 0.2784313858 | AX38: =MAX(0,SUM(Q8:S10*$AD$38:$AF$40)) -> 0 | AY38: =MAX(0,SUM(R8:T10*$AD$38:$AF$40)) -> 0 | AZ38: =MAX(0,SUM(S8:U10*$AD$38:$AF$40)) -> 0.9215686917 | BA38: =MAX(0,SUM(T8:V10*$AD$38:$AF$40)) -> 0.9215686917 | BB38: =MAX(0,SUM(U8:W10*$AD$38:$AF$40)) -> 0 | BC38: =MAX(0,SUM(V8:X10*$AD$38:$AF$40)) -> 0 | BD38: =MAX(0,SUM(W8:Y10*$AD$38:$AF$40)) -> 0 | BE38: =MAX(0,SUM(X8:Z10*$AD$38:$AF$40)) -> 0 | BF38: =MAX(0,SUM(Y8:AA10*$AD$38:$AF$40)) -> 0 | BG38: =MAX(0,SUM(Z8:AB10*$AD$38:$AF$40)) -> 0
AD39: 1 | AE39: 0 | AF39: -1 | AH39: =MAX(0,SUM(A9:C11*$AD$38:$AF$40)) -> 0 | AI39: =MAX(0,SUM(B9:D11*$AD$38:$AF$40)) -> 0 | AJ39: =MAX(0,SUM(C9:E11*$AD$38:$AF$40)) -> 0 | AK39: =MAX(0,SUM(D9:F11*$AD$38:$AF$40)) -> 0 | AL39: =MAX(0,SUM(E9:G11*$AD$38:$AF$40)) -> 0 | AM39: =MAX(0,SUM(F9:H11*$AD$38:$AF$40)) -> 0 | AN39: =MAX(0,SUM(G9:I11*$AD$38:$AF$40)) -> 0 | AO39: =MAX(0,SUM(H9:J11*$AD$38:$AF$40)) -> 0 | AP39: =MAX(0,SUM(I9:K11*$AD$38:$AF$40)) -> 0 | AQ39: =MAX(0,SUM(J9:L11*$AD$38:$AF$40)) -> 0 | AR39: =MAX(0,SUM(K9:M11*$AD$38:$AF$40)) -> 0 | AS39: =MAX(0,SUM(L9:N11*$AD$38:$AF$40)) -> 0.09019610286 | AT39: =MAX(0,SUM(M9:O11*$AD$38:$AF$40)) -> 0 | AU39: =MAX(0,SUM(N9:P11*$AD$38:$AF$40)) -> 0.07450979948 | AV39: =MAX(0,SUM(O9:Q11*$AD$38:$AF$40)) -> 0.5372549295 | AW39: =MAX(0,SUM(P9:R11*$AD$38:$AF$40)) -> 0.2784313858 | AX39: =MAX(0,SUM(Q9:S11*$AD$38:$AF$40)) -> 0.2549020052 | AY39: =MAX(0,SUM(R9:T11*$AD$38:$AF$40)) -> 0.2549020052 | AZ39: =MAX(0,SUM(S9:U11*$AD$38:$AF$40)) -> 1.662745178 | BA39: =MAX(0,SUM(T9:V11*$AD$38:$AF$40)) -> 1.662745178 | BB39: =MAX(0,SUM(U9:W11*$AD$38:$AF$40)) -> 0 | BC39: =MAX(0,SUM(V9:X11*$AD$38:$AF$40)) -> 0 | BD39: =MAX(0,SUM(W9:Y11*$AD$38:$AF$40)) -> 0 | BE39: =MAX(0,SUM(X9:Z11*$AD$38:$AF$40)) -> 0 | BF39: =MAX(0,SUM(Y9:AA11*$AD$38:$AF$40)) -> 0 | BG39: =MAX(0,SUM(Z9:AB11*$AD$38:$AF$40)) -> 0
AD40: 1 | AE40: 0 | AF40: -1 | AH40: =MAX(0,SUM(A10:C12*$AD$38:$AF$40)) -> 0 | AI40: =MAX(0,SUM(B10:D12*$AD$38:$AF$40)) -> 0 | AJ40: =MAX(0,SUM(C10:E12*$AD$38:$AF$40)) -> 0 | AK40: =MAX(0,SUM(D10:F12*$AD$38:$AF$40)) -> 0 | AL40: =MAX(0,SUM(E10:G12*$AD$38:$AF$40)) -> 0 | AM40: =MAX(0,SUM(F10:H12*$AD$38:$AF$40)) -> 0 | AN40: =MAX(0,SUM(G10:I12*$AD$38:$AF$40)) -> 0 | AO40: =MAX(0,SUM(H10:J12*$AD$38:$AF$40)) -> 0.2352941632 | AP40: =MAX(0,SUM(I10:K12*$AD$38:$AF$40)) -> 0.5411765277 | AQ40: =MAX(0,SUM(J10:L12*$AD$38:$AF$40)) -> 0.2431372702 | AR40: =MAX(0,SUM(K10:M12*$AD$38:$AF$40)) -> 0 | AS40: =MAX(0,SUM(L10:N12*$AD$38:$AF$40)) -> 0.01176470518 | AT40: =MAX(0,SUM(M10:O12*$AD$38:$AF$40)) -> 0 | AU40: =MAX(0,SUM(N10:P12*$AD$38:$AF$40)) -> 0 | AV40: =MAX(0,SUM(O10:Q12*$AD$38:$AF$40)) -> 0 | AW40: =MAX(0,SUM(P10:R12*$AD$38:$AF$40)) -> 0 | AX40: =MAX(0,SUM(Q10:S12*$AD$38:$AF$40)) -> 0.1294118166 | AY40: =MAX(0,SUM(R10:T12*$AD$38:$AF$40)) -> 0.5098040104 | AZ40: =MAX(0,SUM(S10:U12*$AD$38:$AF$40)) -> 1.917647183 | BA40: =MAX(0,SUM(T10:V12*$AD$38:$AF$40)) -> 2.403921664 | BB40: =MAX(0,SUM(U10:W12*$AD$38:$AF$40)) -> 0.741176486 | BC40: =MAX(0,SUM(V10:X12*$AD$38:$AF$40)) -> 0 | BD40: =MAX(0,SUM(W10:Y12*$AD$38:$AF$40)) -> 0 | BE40: =MAX(0,SUM(X10:Z12*$AD$38:$AF$40)) -> 0 | BF40: =MAX(0,SUM(Y10:AA12*$AD$38:$AF$40)) -> 0 | BG40: =MAX(0,SUM(Z10:AB12*$AD$38:$AF$40)) -> 0
AH41: =MAX(0,SUM(A11:C13*$AD$38:$AF$40)) -> 0 | AI41: =MAX(0,SUM(B11:D13*$AD$38:$AF$40)) -> 0 | AJ41: =MAX(0,SUM(C11:E13*$AD$38:$AF$40)) -> 0 | AK41: =MAX(0,SUM(D11:F13*$AD$38:$AF$40)) -> 0.5254901946 | AL41: =MAX(0,SUM(E11:G13*$AD$38:$AF$40)) -> 0.08627451211 | AM41: =MAX(0,SUM(F11:H13*$AD$38:$AF$40)) -> 0 | AN41: =MAX(0,SUM(G11:I13*$AD$38:$AF$40)) -> 0 | AO41: =MAX(0,SUM(H11:J13*$AD$38:$AF$40)) -> 0.2352941632 | AP41: =MAX(0,SUM(I11:K13*$AD$38:$AF$40)) -> 0.5411765277 | AQ41: =MAX(0,SUM(J11:L13*$AD$38:$AF$40)) -> 0.3058823645 | AR41: =MAX(0,SUM(K11:M13*$AD$38:$AF$40)) -> 0 | AS41: =MAX(0,SUM(L11:N13*$AD$38:$AF$40)) -> 0 | AT41: =MAX(0,SUM(M11:O13*$AD$38:$AF$40)) -> 0 | AU41: =MAX(0,SUM(N11:P13*$AD$38:$AF$40)) -> 0 | AV41: =MAX(0,SUM(O11:Q13*$AD$38:$AF$40)) -> 0 | AW41: =MAX(0,SUM(P11:R13*$AD$38:$AF$40)) -> 0 | AX41: =MAX(0,SUM(Q11:S13*$AD$38:$AF$40)) -> 0 | AY41: =MAX(0,SUM(R11:T13*$AD$38:$AF$40)) -> 0.3490197062 | AZ41: =MAX(0,SUM(S11:U13*$AD$38:$AF$40)) -> 1.541176558 | BA41: =MAX(0,SUM(T11:V13*$AD$38:$AF$40)) -> 2.478431463 | BB41: =MAX(0,SUM(U11:W13*$AD$38:$AF$40)) -> 1.192156911 | BC41: =MAX(0,SUM(V11:X13*$AD$38:$AF$40)) -> 0 | BD41: =MAX(0,SUM(W11:Y13*$AD$38:$AF$40)) -> 0 | BE41: =MAX(0,SUM(X11:Z13*$AD$38:$AF$40)) -> 0 | BF41: =MAX(0,SUM(Y11:AA13*$AD$38:$AF$40)) -> 0 | BG41: =MAX(0,SUM(Z11:AB13*$AD$38:$AF$40)) -> 0
AH42: =MAX(0,SUM(A12:C14*$AD$38:$AF$40)) -> 0 | AI42: =MAX(0,SUM(B12:D14*$AD$38:$AF$40)) -> 0 | AJ42: =MAX(0,SUM(C12:E14*$AD$38:$AF$40)) -> 0.1686274484 | AK42: =MAX(0,SUM(D12:F14*$AD$38:$AF$40)) -> 0.5372548997 | AL42: =MAX(0,SUM(E12:G14*$AD$38:$AF$40)) -> 0.08627451211 | AM42: =MAX(0,SUM(F12:H14*$AD$38:$AF$40)) -> 0 | AN42: =MAX(0,SUM(G12:I14*$AD$38:$AF$40)) -> 0 | AO42: =MAX(0,SUM(H12:J14*$AD$38:$AF$40)) -> 0.2352941632 | AP42: =MAX(0,SUM(I12:K14*$AD$38:$AF$40)) -> 0.5411765277 | AQ42: =MAX(0,SUM(J12:L14*$AD$38:$AF$40)) -> 0.3058823645 | AR42: =MAX(0,SUM(K12:M14*$AD$38:$AF$40)) -> 0 | AS42: =MAX(0,SUM(L12:N14*$AD$38:$AF$40)) -> 0 | AT42: =MAX(0,SUM(M12:O14*$AD$38:$AF$40)) -> 0 | AU42: =MAX(0,SUM(N12:P14*$AD$38:$AF$40)) -> 0 | AV42: =MAX(0,SUM(O12:Q14*$AD$38:$AF$40)) -> 0 | AW42: =MAX(0,SUM(P12:R14*$AD$38:$AF$40)) -> 0 | AX42: =MAX(0,SUM(Q12:S14*$AD$38:$AF$40)) -> 0 | AY42: =MAX(0,SUM(R12:T14*$AD$38:$AF$40)) -> 0 | AZ42: =MAX(0,SUM(S12:U14*$AD$38:$AF$40)) -> 0.8784314394 | BA42: =MAX(0,SUM(T12:V14*$AD$38:$AF$40)) -> 2.733333468 | BB42: =MAX(0,SUM(U12:W14*$AD$38:$AF$40)) -> 2.109804034 | BC42: =MAX(0,SUM(V12:X14*$AD$38:$AF$40)) -> 0 | BD42: =MAX(0,SUM(W12:Y14*$AD$38:$AF$40)) -> 0 | BE42: =MAX(0,SUM(X12:Z14*$AD$38:$AF$40)) -> 0 | BF42: =MAX(0,SUM(Y12:AA14*$AD$38:$AF$40)) -> 0 | BG42: =MAX(0,SUM(Z12:AB14*$AD$38:$AF$40)) -> 0
AH43: =MAX(0,SUM(A13:C15*$AD$38:$AF$40)) -> 0 | AI43: =MAX(0,SUM(B13:D15*$AD$38:$AF$40)) -> 0 | AJ43: =MAX(0,SUM(C13:E15*$AD$38:$AF$40)) -> 0.09803921729 | AK43: =MAX(0,SUM(D13:F15*$AD$38:$AF$40)) -> 0.3215686381 | AL43: =MAX(0,SUM(E13:G15*$AD$38:$AF$40)) -> 0.05098039657 | AM43: =MAX(0,SUM(F13:H15*$AD$38:$AF$40)) -> 0 | AN43: =MAX(0,SUM(G13:I15*$AD$38:$AF$40)) -> 0 | AO43: =MAX(0,SUM(H13:J15*$AD$38:$AF$40)) -> 0 | AP43: =MAX(0,SUM(I13:K15*$AD$38:$AF$40)) -> 0 | AQ43: =MAX(0,SUM(J13:L15*$AD$38:$AF$40)) -> 0 | AR43: =MAX(0,SUM(K13:M15*$AD$38:$AF$40)) -> 0 | AS43: =MAX(0,SUM(L13:N15*$AD$38:$AF$40)) -> 0 | AT43: =MAX(0,SUM(M13:O15*$AD$38:$AF$40)) -> 0 | AU43: =MAX(0,SUM(N13:P15*$AD$38:$AF$40)) -> 0 | AV43: =MAX(0,SUM(O13:Q15*$AD$38:$AF$40)) -> 0 | AW43: =MAX(0,SUM(P13:R15*$AD$38:$AF$40)) -> 0 | AX43: =MAX(0,SUM(Q13:S15*$AD$38:$AF$40)) -> 0 | AY43: =MAX(0,SUM(R13:T15*$AD$38:$AF$40)) -> 0 | AZ43: =MAX(0,SUM(S13:U15*$AD$38:$AF$40)) -> 0.7019608021 | BA43: =MAX(0,SUM(T13:V15*$AD$38:$AF$40)) -> 2.988235474 | BB43: =MAX(0,SUM(U13:W15*$AD$38:$AF$40)) -> 2.286274672 | BC43: =MAX(0,SUM(V13:X15*$AD$38:$AF$40)) -> 0 | BD43: =MAX(0,SUM(W13:Y15*$AD$38:$AF$40)) -> 0 | BE43: =MAX(0,SUM(X13:Z15*$AD$38:$AF$40)) -> 0 | BF43: =MAX(0,SUM(Y13:AA15*$AD$38:$AF$40)) -> 0 | BG43: =MAX(0,SUM(Z13:AB15*$AD$38:$AF$40)) -> 0
AH44: =MAX(0,SUM(A14:C16*$AD$38:$AF$40)) -> 0 | AI44: =MAX(0,SUM(B14:D16*$AD$38:$AF$40)) -> 0 | AJ44: =MAX(0,SUM(C14:E16*$AD$38:$AF$40)) -> 0 | AK44: =MAX(0,SUM(D14:F16*$AD$38:$AF$40)) -> 0 | AL44: =MAX(0,SUM(E14:G16*$AD$38:$AF$40)) -> 0 | AM44: =MAX(0,SUM(F14:H16*$AD$38:$AF$40)) -> 0 | AN44: =MAX(0,SUM(G14:I16*$AD$38:$AF$40)) -> 0 | AO44: =MAX(0,SUM(H14:J16*$AD$38:$AF$40)) -> 0 | AP44: =MAX(0,SUM(I14:K16*$AD$38:$AF$40)) -> 0 | AQ44: =MAX(0,SUM(J14:L16*$AD$38:$AF$40)) -> 0 | AR44: =MAX(0,SUM(K14:M16*$AD$38:$AF$40)) -> 0 | AS44: =MAX(0,SUM(L14:N16*$AD$38:$AF$40)) -> 0.07843139768 | AT44: =MAX(0,SUM(M14:O16*$AD$38:$AF$40)) -> 0 | AU44: =MAX(0,SUM(N14:P16*$AD$38:$AF$40)) -> 0.0627450943 | AV44: =MAX(0,SUM(O14:Q16*$AD$38:$AF$40)) -> 0.4627451301 | AW44: =MAX(0,SUM(P14:R16*$AD$38:$AF$40)) -> 0 | AX44: =MAX(0,SUM(Q14:S16*$AD$38:$AF$40)) -> 0 | AY44: =MAX(0,SUM(R14:T16*$AD$38:$AF$40)) -> 0 | AZ44: =MAX(0,SUM(S14:U16*$AD$38:$AF$40)) -> 0.2352941036 | BA44: =MAX(0,SUM(T14:V16*$AD$38:$AF$40)) -> 2.788235456 | BB44: =MAX(0,SUM(U14:W16*$AD$38:$AF$40)) -> 2.75294137 | BC44: =MAX(0,SUM(V14:X16*$AD$38:$AF$40)) -> 0.2000000179 | BD44: =MAX(0,SUM(W14:Y16*$AD$38:$AF$40)) -> 0 | BE44: =MAX(0,SUM(X14:Z16*$AD$38:$AF$40)) -> 0 | BF44: =MAX(0,SUM(Y14:AA16*$AD$38:$AF$40)) -> 0 | BG44: =MAX(0,SUM(Z14:AB16*$AD$38:$AF$40)) -> 0
AH45: =MAX(0,SUM(A15:C17*$AD$38:$AF$40)) -> 0 | AI45: =MAX(0,SUM(B15:D17*$AD$38:$AF$40)) -> 0 | AJ45: =MAX(0,SUM(C15:E17*$AD$38:$AF$40)) -> 0 | AK45: =MAX(0,SUM(D15:F17*$AD$38:$AF$40)) -> 0 | AL45: =MAX(0,SUM(E15:G17*$AD$38:$AF$40)) -> 0 | AM45: =MAX(0,SUM(F15:H17*$AD$38:$AF$40)) -> 0 | AN45: =MAX(0,SUM(G15:I17*$AD$38:$AF$40)) -> 0 | AO45: =MAX(0,SUM(H15:J17*$AD$38:$AF$40)) -> 0 | AP45: =MAX(0,SUM(I15:K17*$AD$38:$AF$40)) -> 0 | AQ45: =MAX(0,SUM(J15:L17*$AD$38:$AF$40)) -> 0 | AR45: =MAX(0,SUM(K15:M17*$AD$38:$AF$40)) -> 0 | AS45: =MAX(0,SUM(L15:N17*$AD$38:$AF$40)) -> 0.09019610286 | AT45: =MAX(0,SUM(M15:O17*$AD$38:$AF$40)) -> 0 | AU45: =MAX(0,SUM(N15:P17*$AD$38:$AF$40)) -> 0.07450979948 | AV45: =MAX(0,SUM(O15:Q17*$AD$38:$AF$40)) -> 0.5372549295 | AW45: =MAX(0,SUM(P15:R17*$AD$38:$AF$40)) -> 0.1254902482 | AX45: =MAX(0,SUM(Q15:S17*$AD$38:$AF$40)) -> 0 | AY45: =MAX(0,SUM(R15:T17*$AD$38:$AF$40)) -> 0 | AZ45: =MAX(0,SUM(S15:U17*$AD$38:$AF$40)) -> 0.2352941036 | BA45: =MAX(0,SUM(T15:V17*$AD$38:$AF$40)) -> 1.847058922 | BB45: =MAX(0,SUM(U15:W17*$AD$38:$AF$40)) -> 2.75294137 | BC45: =MAX(0,SUM(V15:X17*$AD$38:$AF$40)) -> 1.141176552 | BD45: =MAX(0,SUM(W15:Y17*$AD$38:$AF$40)) -> 0 | BE45: =MAX(0,SUM(X15:Z17*$AD$38:$AF$40)) -> 0 | BF45: =MAX(0,SUM(Y15:AA17*$AD$38:$AF$40)) -> 0 | BG45: =MAX(0,SUM(Z15:AB17*$AD$38:$AF$40)) -> 0
AH46: =MAX(0,SUM(A16:C18*$AD$38:$AF$40)) -> 0 | AI46: =MAX(0,SUM(B16:D18*$AD$38:$AF$40)) -> 0 | AJ46: =MAX(0,SUM(C16:E18*$AD$38:$AF$40)) -> 0 | AK46: =MAX(0,SUM(D16:F18*$AD$38:$AF$40)) -> 0 | AL46: =MAX(0,SUM(E16:G18*$AD$38:$AF$40)) -> 0 | AM46: =MAX(0,SUM(F16:H18*$AD$38:$AF$40)) -> 0 | AN46: =MAX(0,SUM(G16:I18*$AD$38:$AF$40)) -> 0 | AO46: =MAX(0,SUM(H16:J18*$AD$38:$AF$40)) -> 0 | AP46: =MAX(0,SUM(I16:K18*$AD$38:$AF$40)) -> 0 | AQ46: =MAX(0,SUM(J16:L18*$AD$38:$AF$40)) -> 0 | AR46: =MAX(0,SUM(K16:M18*$AD$38:$AF$40)) -> 0 | AS46: =MAX(0,SUM(L16:N18*$AD$38:$AF$40)) -> 0.09019610286 | AT46: =MAX(0,SUM(M16:O18*$AD$38:$AF$40)) -> 0 | AU46: =MAX(0,SUM(N16:P18*$AD$38:$AF$40)) -> 0.07450979948 | AV46: =MAX(0,SUM(O16:Q18*$AD$38:$AF$40)) -> 0.5372549295 | AW46: =MAX(0,SUM(P16:R18*$AD$38:$AF$40)) -> 0.4549020231 | AX46: =MAX(0,SUM(Q16:S18*$AD$38:$AF$40)) -> 0 | AY46: =MAX(0,SUM(R16:T18*$AD$38:$AF$40)) -> 0 | AZ46: =MAX(0,SUM(S16:U18*$AD$38:$AF$40)) -> 0.2352941036 | BA46: =MAX(0,SUM(T16:V18*$AD$38:$AF$40)) -> 1.290196151 | BB46: =MAX(0,SUM(U16:W18*$AD$38:$AF$40)) -> 2.75294137 | BC46: =MAX(0,SUM(V16:X18*$AD$38:$AF$40)) -> 1.698039323 | BD46: =MAX(0,SUM(W16:Y18*$AD$38:$AF$40)) -> 0 | BE46: =MAX(0,SUM(X16:Z18*$AD$38:$AF$40)) -> 0 | BF46: =MAX(0,SUM(Y16:AA18*$AD$38:$AF$40)) -> 0 | BG46: =MAX(0,SUM(Z16:AB18*$AD$38:$AF$40)) -> 0
AH47: =MAX(0,SUM(A17:C19*$AD$38:$AF$40)) -> 0 | AI47: =MAX(0,SUM(B17:D19*$AD$38:$AF$40)) -> 0 | AJ47: =MAX(0,SUM(C17:E19*$AD$38:$AF$40)) -> 0 | AK47: =MAX(0,SUM(D17:F19*$AD$38:$AF$40)) -> 0 | AL47: =MAX(0,SUM(E17:G19*$AD$38:$AF$40)) -> 0 | AM47: =MAX(0,SUM(F17:H19*$AD$38:$AF$40)) -> 0 | AN47: =MAX(0,SUM(G17:I19*$AD$38:$AF$40)) -> 0 | AO47: =MAX(0,SUM(H17:J19*$AD$38:$AF$40)) -> 0.2352941632 | AP47: =MAX(0,SUM(I17:K19*$AD$38:$AF$40)) -> 0.5411765277 | AQ47: =MAX(0,SUM(J17:L19*$AD$38:$AF$40)) -> 0.2431372702 | AR47: =MAX(0,SUM(K17:M19*$AD$38:$AF$40)) -> 0 | AS47: =MAX(0,SUM(L17:N19*$AD$38:$AF$40)) -> 0.01176470518 | AT47: =MAX(0,SUM(M17:O19*$AD$38:$AF$40)) -> 0 | AU47: =MAX(0,SUM(N17:P19*$AD$38:$AF$40)) -> 0 | AV47: =MAX(0,SUM(O17:Q19*$AD$38:$AF$40)) -> 0 | AW47: =MAX(0,SUM(P17:R19*$AD$38:$AF$40)) -> 0 | AX47: =MAX(0,SUM(Q17:S19*$AD$38:$AF$40)) -> 0 | AY47: =MAX(0,SUM(R17:T19*$AD$38:$AF$40)) -> 0 | AZ47: =MAX(0,SUM(S17:U19*$AD$38:$AF$40)) -> 0.2352941036 | BA47: =MAX(0,SUM(T17:V19*$AD$38:$AF$40)) -> 1.031372607 | BB47: =MAX(0,SUM(U17:W19*$AD$38:$AF$40)) -> 2.75294137 | BC47: =MAX(0,SUM(V17:X19*$AD$38:$AF$40)) -> 1.956862867 | BD47: =MAX(0,SUM(W17:Y19*$AD$38:$AF$40)) -> 0 | BE47: =MAX(0,SUM(X17:Z19*$AD$38:$AF$40)) -> 0 | BF47: =MAX(0,SUM(Y17:AA19*$AD$38:$AF$40)) -> 0 | BG47: =MAX(0,SUM(Z17:AB19*$AD$38:$AF$40)) -> 0
AH48: =MAX(0,SUM(A18:C20*$AD$38:$AF$40)) -> 0 | AI48: =MAX(0,SUM(B18:D20*$AD$38:$AF$40)) -> 0 | AJ48: =MAX(0,SUM(C18:E20*$AD$38:$AF$40)) -> 0 | AK48: =MAX(0,SUM(D18:F20*$AD$38:$AF$40)) -> 0.5254901946 | AL48: =MAX(0,SUM(E18:G20*$AD$38:$AF$40)) -> 0.08627451211 | AM48: =MAX(0,SUM(F18:H20*$AD$38:$AF$40)) -> 0 | AN48: =MAX(0,SUM(G18:I20*$AD$38:$AF$40)) -> 0 | AO48: =MAX(0,SUM(H18:J20*$AD$38:$AF$40)) -> 0.2352941632 | AP48: =MAX(0,SUM(I18:K20*$AD$38:$AF$40)) -> 0.5411765277 | AQ48: =MAX(0,SUM(J18:L20*$AD$38:$AF$40)) -> 0.3058823645 | AR48: =MAX(0,SUM(K18:M20*$AD$38:$AF$40)) -> 0 | AS48: =MAX(0,SUM(L18:N20*$AD$38:$AF$40)) -> 0 | AT48: =MAX(0,SUM(M18:O20*$AD$38:$AF$40)) -> 0 | AU48: =MAX(0,SUM(N18:P20*$AD$38:$AF$40)) -> 0 | AV48: =MAX(0,SUM(O18:Q20*$AD$38:$AF$40)) -> 0 | AW48: =MAX(0,SUM(P18:R20*$AD$38:$AF$40)) -> 0 | AX48: =MAX(0,SUM(Q18:S20*$AD$38:$AF$40)) -> 0 | AY48: =MAX(0,SUM(R18:T20*$AD$38:$AF$40)) -> 0 | AZ48: =MAX(0,SUM(S18:U20*$AD$38:$AF$40)) -> 0.2352941036 | BA48: =MAX(0,SUM(T18:V20*$AD$38:$AF$40)) -> 1.811764821 | BB48: =MAX(0,SUM(U18:W20*$AD$38:$AF$40)) -> 2.75294137 | BC48: =MAX(0,SUM(V18:X20*$AD$38:$AF$40)) -> 1.176470652 | BD48: =MAX(0,SUM(W18:Y20*$AD$38:$AF$40)) -> 0 | BE48: =MAX(0,SUM(X18:Z20*$AD$38:$AF$40)) -> 0 | BF48: =MAX(0,SUM(Y18:AA20*$AD$38:$AF$40)) -> 0 | BG48: =MAX(0,SUM(Z18:AB20*$AD$38:$AF$40)) -> 0
AH49: =MAX(0,SUM(A19:C21*$AD$38:$AF$40)) -> 0 | AI49: =MAX(0,SUM(B19:D21*$AD$38:$AF$40)) -> 0 | AJ49: =MAX(0,SUM(C19:E21*$AD$38:$AF$40)) -> 0.1686274484 | AK49: =MAX(0,SUM(D19:F21*$AD$38:$AF$40)) -> 0.5372548997 | AL49: =MAX(0,SUM(E19:G21*$AD$38:$AF$40)) -> 0.08627451211 | AM49: =MAX(0,SUM(F19:H21*$AD$38:$AF$40)) -> 0 | AN49: =MAX(0,SUM(G19:I21*$AD$38:$AF$40)) -> 0 | AO49: =MAX(0,SUM(H19:J21*$AD$38:$AF$40)) -> 0.2352941632 | AP49: =MAX(0,SUM(I19:K21*$AD$38:$AF$40)) -> 0.5411765277 | AQ49: =MAX(0,SUM(J19:L21*$AD$38:$AF$40)) -> 0.3058823645 | AR49: =MAX(0,SUM(K19:M21*$AD$38:$AF$40)) -> 0 | AS49: =MAX(0,SUM(L19:N21*$AD$38:$AF$40)) -> 0 | AT49: =MAX(0,SUM(M19:O21*$AD$38:$AF$40)) -> 0 | AU49: =MAX(0,SUM(N19:P21*$AD$38:$AF$40)) -> 0 | AV49: =MAX(0,SUM(O19:Q21*$AD$38:$AF$40)) -> 0 | AW49: =MAX(0,SUM(P19:R21*$AD$38:$AF$40)) -> 0 | AX49: =MAX(0,SUM(Q19:S21*$AD$38:$AF$40)) -> 0 | AY49: =MAX(0,SUM(R19:T21*$AD$38:$AF$40)) -> 0 | AZ49: =MAX(0,SUM(S19:U21*$AD$38:$AF$40)) -> 0.2352941036 | BA49: =MAX(0,SUM(T19:V21*$AD$38:$AF$40)) -> 2.368627593 | BB49: =MAX(0,SUM(U19:W21*$AD$38:$AF$40)) -> 2.75294137 | BC49: =MAX(0,SUM(V19:X21*$AD$38:$AF$40)) -> 0.6196078807 | BD49: =MAX(0,SUM(W19:Y21*$AD$38:$AF$40)) -> 0 | BE49: =MAX(0,SUM(X19:Z21*$AD$38:$AF$40)) -> 0 | BF49: =MAX(0,SUM(Y19:AA21*$AD$38:$AF$40)) -> 0 | BG49: =MAX(0,SUM(Z19:AB21*$AD$38:$AF$40)) -> 0
AH50: =MAX(0,SUM(A20:C22*$AD$38:$AF$40)) -> 0 | AI50: =MAX(0,SUM(B20:D22*$AD$38:$AF$40)) -> 0 | AJ50: =MAX(0,SUM(C20:E22*$AD$38:$AF$40)) -> 0.09803921729 | AK50: =MAX(0,SUM(D20:F22*$AD$38:$AF$40)) -> 0.3215686381 | AL50: =MAX(0,SUM(E20:G22*$AD$38:$AF$40)) -> 0.05098039657 | AM50: =MAX(0,SUM(F20:H22*$AD$38:$AF$40)) -> 0 | AN50: =MAX(0,SUM(G20:I22*$AD$38:$AF$40)) -> 0 | AO50: =MAX(0,SUM(H20:J22*$AD$38:$AF$40)) -> 0 | AP50: =MAX(0,SUM(I20:K22*$AD$38:$AF$40)) -> 0 | AQ50: =MAX(0,SUM(J20:L22*$AD$38:$AF$40)) -> 0 | AR50: =MAX(0,SUM(K20:M22*$AD$38:$AF$40)) -> 0 | AS50: =MAX(0,SUM(L20:N22*$AD$38:$AF$40)) -> 0 | AT50: =MAX(0,SUM(M20:O22*$AD$38:$AF$40)) -> 0 | AU50: =MAX(0,SUM(N20:P22*$AD$38:$AF$40)) -> 0 | AV50: =MAX(0,SUM(O20:Q22*$AD$38:$AF$40)) -> 0 | AW50: =MAX(0,SUM(P20:R22*$AD$38:$AF$40)) -> 0 | AX50: =MAX(0,SUM(Q20:S22*$AD$38:$AF$40)) -> 0 | AY50: =MAX(0,SUM(R20:T22*$AD$38:$AF$40)) -> 0 | AZ50: =MAX(0,SUM(S20:U22*$AD$38:$AF$40)) -> 0.2352941036 | BA50: =MAX(0,SUM(T20:V22*$AD$38:$AF$40)) -> 2.827451155 | BB50: =MAX(0,SUM(U20:W22*$AD$38:$AF$40)) -> 2.75294137 | BC50: =MAX(0,SUM(V20:X22*$AD$38:$AF$40)) -> 0.160784319 | BD50: =MAX(0,SUM(W20:Y22*$AD$38:$AF$40)) -> 0 | BE50: =MAX(0,SUM(X20:Z22*$AD$38:$AF$40)) -> 0 | BF50: =MAX(0,SUM(Y20:AA22*$AD$38:$AF$40)) -> 0 | BG50: =MAX(0,SUM(Z20:AB22*$AD$38:$AF$40)) -> 0
AH51: =MAX(0,SUM(A21:C23*$AD$38:$AF$40)) -> 0 | AI51: =MAX(0,SUM(B21:D23*$AD$38:$AF$40)) -> 0 | AJ51: =MAX(0,SUM(C21:E23*$AD$38:$AF$40)) -> 0 | AK51: =MAX(0,SUM(D21:F23*$AD$38:$AF$40)) -> 0 | AL51: =MAX(0,SUM(E21:G23*$AD$38:$AF$40)) -> 0 | AM51: =MAX(0,SUM(F21:H23*$AD$38:$AF$40)) -> 0 | AN51: =MAX(0,SUM(G21:I23*$AD$38:$AF$40)) -> 0 | AO51: =MAX(0,SUM(H21:J23*$AD$38:$AF$40)) -> 0 | AP51: =MAX(0,SUM(I21:K23*$AD$38:$AF$40)) -> 0 | AQ51: =MAX(0,SUM(J21:L23*$AD$38:$AF$40)) -> 0 | AR51: =MAX(0,SUM(K21:M23*$AD$38:$AF$40)) -> 0 | AS51: =MAX(0,SUM(L21:N23*$AD$38:$AF$40)) -> 0 | AT51: =MAX(0,SUM(M21:O23*$AD$38:$AF$40)) -> 0 | AU51: =MAX(0,SUM(N21:P23*$AD$38:$AF$40)) -> 0 | AV51: =MAX(0,SUM(O21:Q23*$AD$38:$AF$40)) -> 0 | AW51: =MAX(0,SUM(P21:R23*$AD$38:$AF$40)) -> 0 | AX51: =MAX(0,SUM(Q21:S23*$AD$38:$AF$40)) -> 0 | AY51: =MAX(0,SUM(R21:T23*$AD$38:$AF$40)) -> 0 | AZ51: =MAX(0,SUM(S21:U23*$AD$38:$AF$40)) -> 0.2352941036 | BA51: =MAX(0,SUM(T21:V23*$AD$38:$AF$40)) -> 2.988235474 | BB51: =MAX(0,SUM(U21:W23*$AD$38:$AF$40)) -> 2.75294137 | BC51: =MAX(0,SUM(V21:X23*$AD$38:$AF$40)) -> 0 | BD51: =MAX(0,SUM(W21:Y23*$AD$38:$AF$40)) -> 0 | BE51: =MAX(0,SUM(X21:Z23*$AD$38:$AF$40)) -> 0 | BF51: =MAX(0,SUM(Y21:AA23*$AD$38:$AF$40)) -> 0 | BG51: =MAX(0,SUM(Z21:AB23*$AD$38:$AF$40)) -> 0
AH52: =MAX(0,SUM(A22:C24*$AD$38:$AF$40)) -> 0 | AI52: =MAX(0,SUM(B22:D24*$AD$38:$AF$40)) -> 0 | AJ52: =MAX(0,SUM(C22:E24*$AD$38:$AF$40)) -> 0 | AK52: =MAX(0,SUM(D22:F24*$AD$38:$AF$40)) -> 0 | AL52: =MAX(0,SUM(E22:G24*$AD$38:$AF$40)) -> 0 | AM52: =MAX(0,SUM(F22:H24*$AD$38:$AF$40)) -> 0 | AN52: =MAX(0,SUM(G22:I24*$AD$38:$AF$40)) -> 0 | AO52: =MAX(0,SUM(H22:J24*$AD$38:$AF$40)) -> 0 | AP52: =MAX(0,SUM(I22:K24*$AD$38:$AF$40)) -> 0 | AQ52: =MAX(0,SUM(J22:L24*$AD$38:$AF$40)) -> 0 | AR52: =MAX(0,SUM(K22:M24*$AD$38:$AF$40)) -> 0 | AS52: =MAX(0,SUM(L22:N24*$AD$38:$AF$40)) -> 0.07843139768 | AT52: =MAX(0,SUM(M22:O24*$AD$38:$AF$40)) -> 0 | AU52: =MAX(0,SUM(N22:P24*$AD$38:$AF$40)) -> 0.0627450943 | AV52: =MAX(0,SUM(O22:Q24*$AD$38:$AF$40)) -> 0.4627451301 | AW52: =MAX(0,SUM(P22:R24*$AD$38:$AF$40)) -> 0 | AX52: =MAX(0,SUM(Q22:S24*$AD$38:$AF$40)) -> 0 | AY52: =MAX(0,SUM(R22:T24*$AD$38:$AF$40)) -> 0 | AZ52: =MAX(0,SUM(S22:U24*$AD$38:$AF$40)) -> 0.2352941036 | BA52: =MAX(0,SUM(T22:V24*$AD$38:$AF$40)) -> 2.988235474 | BB52: =MAX(0,SUM(U22:W24*$AD$38:$AF$40)) -> 2.75294137 | BC52: =MAX(0,SUM(V22:X24*$AD$38:$AF$40)) -> 0 | BD52: =MAX(0,SUM(W22:Y24*$AD$38:$AF$40)) -> 0 | BE52: =MAX(0,SUM(X22:Z24*$AD$38:$AF$40)) -> 0 | BF52: =MAX(0,SUM(Y22:AA24*$AD$38:$AF$40)) -> 0 | BG52: =MAX(0,SUM(Z22:AB24*$AD$38:$AF$40)) -> 0
AH53: =MAX(0,SUM(A23:C25*$AD$38:$AF$40)) -> 0 | AI53: =MAX(0,SUM(B23:D25*$AD$38:$AF$40)) -> 0 | AJ53: =MAX(0,SUM(C23:E25*$AD$38:$AF$40)) -> 0 | AK53: =MAX(0,SUM(D23:F25*$AD$38:$AF$40)) -> 0 | AL53: =MAX(0,SUM(E23:G25*$AD$38:$AF$40)) -> 0 | AM53: =MAX(0,SUM(F23:H25*$AD$38:$AF$40)) -> 0 | AN53: =MAX(0,SUM(G23:I25*$AD$38:$AF$40)) -> 0 | AO53: =MAX(0,SUM(H23:J25*$AD$38:$AF$40)) -> 0 | AP53: =MAX(0,SUM(I23:K25*$AD$38:$AF$40)) -> 0 | AQ53: =MAX(0,SUM(J23:L25*$AD$38:$AF$40)) -> 0 | AR53: =MAX(0,SUM(K23:M25*$AD$38:$AF$40)) -> 0 | AS53: =MAX(0,SUM(L23:N25*$AD$38:$AF$40)) -> 0.09019610286 | AT53: =MAX(0,SUM(M23:O25*$AD$38:$AF$40)) -> 0 | AU53: =MAX(0,SUM(N23:P25*$AD$38:$AF$40)) -> 0.07450979948 | AV53: =MAX(0,SUM(O23:Q25*$AD$38:$AF$40)) -> 0.5372549295 | AW53: =MAX(0,SUM(P23:R25*$AD$38:$AF$40)) -> 0 | AX53: =MAX(0,SUM(Q23:S25*$AD$38:$AF$40)) -> 0 | AY53: =MAX(0,SUM(R23:T25*$AD$38:$AF$40)) -> 0 | AZ53: =MAX(0,SUM(S23:U25*$AD$38:$AF$40)) -> 0.2352941036 | BA53: =MAX(0,SUM(T23:V25*$AD$38:$AF$40)) -> 2.988235474 | BB53: =MAX(0,SUM(U23:W25*$AD$38:$AF$40)) -> 2.75294137 | BC53: =MAX(0,SUM(V23:X25*$AD$38:$AF$40)) -> 0 | BD53: =MAX(0,SUM(W23:Y25*$AD$38:$AF$40)) -> 0 | BE53: =MAX(0,SUM(X23:Z25*$AD$38:$AF$40)) -> 0 | BF53: =MAX(0,SUM(Y23:AA25*$AD$38:$AF$40)) -> 0 | BG53: =MAX(0,SUM(Z23:AB25*$AD$38:$AF$40)) -> 0
AH54: =MAX(0,SUM(A24:C26*$AD$38:$AF$40)) -> 0 | AI54: =MAX(0,SUM(B24:D26*$AD$38:$AF$40)) -> 0 | AJ54: =MAX(0,SUM(C24:E26*$AD$38:$AF$40)) -> 0 | AK54: =MAX(0,SUM(D24:F26*$AD$38:$AF$40)) -> 0 | AL54: =MAX(0,SUM(E24:G26*$AD$38:$AF$40)) -> 0 | AM54: =MAX(0,SUM(F24:H26*$AD$38:$AF$40)) -> 0 | AN54: =MAX(0,SUM(G24:I26*$AD$38:$AF$40)) -> 0 | AO54: =MAX(0,SUM(H24:J26*$AD$38:$AF$40)) -> 0 | AP54: =MAX(0,SUM(I24:K26*$AD$38:$AF$40)) -> 0 | AQ54: =MAX(0,SUM(J24:L26*$AD$38:$AF$40)) -> 0 | AR54: =MAX(0,SUM(K24:M26*$AD$38:$AF$40)) -> 0 | AS54: =MAX(0,SUM(L24:N26*$AD$38:$AF$40)) -> 0.09019610286 | AT54: =MAX(0,SUM(M24:O26*$AD$38:$AF$40)) -> 0 | AU54: =MAX(0,SUM(N24:P26*$AD$38:$AF$40)) -> 0.07450979948 | AV54: =MAX(0,SUM(O24:Q26*$AD$38:$AF$40)) -> 0.5372549295 | AW54: =MAX(0,SUM(P24:R26*$AD$38:$AF$40)) -> 0.4549020231 | AX54: =MAX(0,SUM(Q24:S26*$AD$38:$AF$40)) -> 0 | AY54: =MAX(0,SUM(R24:T26*$AD$38:$AF$40)) -> 0 | AZ54: =MAX(0,SUM(S24:U26*$AD$38:$AF$40)) -> 0.2352941036 | BA54: =MAX(0,SUM(T24:V26*$AD$38:$AF$40)) -> 2.988235474 | BB54: =MAX(0,SUM(U24:W26*$AD$38:$AF$40)) -> 2.75294137 | BC54: =MAX(0,SUM(V24:X26*$AD$38:$AF$40)) -> 0 | BD54: =MAX(0,SUM(W24:Y26*$AD$38:$AF$40)) -> 0 | BE54: =MAX(0,SUM(X24:Z26*$AD$38:$AF$40)) -> 0 | BF54: =MAX(0,SUM(Y24:AA26*$AD$38:$AF$40)) -> 0 | BG54: =MAX(0,SUM(Z24:AB26*$AD$38:$AF$40)) -> 0
AH55: =MAX(0,SUM(A25:C27*$AD$38:$AF$40)) -> 0 | AI55: =MAX(0,SUM(B25:D27*$AD$38:$AF$40)) -> 0 | AJ55: =MAX(0,SUM(C25:E27*$AD$38:$AF$40)) -> 0 | AK55: =MAX(0,SUM(D25:F27*$AD$38:$AF$40)) -> 0 | AL55: =MAX(0,SUM(E25:G27*$AD$38:$AF$40)) -> 0 | AM55: =MAX(0,SUM(F25:H27*$AD$38:$AF$40)) -> 0 | AN55: =MAX(0,SUM(G25:I27*$AD$38:$AF$40)) -> 0 | AO55: =MAX(0,SUM(H25:J27*$AD$38:$AF$40)) -> 0 | AP55: =MAX(0,SUM(I25:K27*$AD$38:$AF$40)) -> 0 | AQ55: =MAX(0,SUM(J25:L27*$AD$38:$AF$40)) -> 0 | AR55: =MAX(0,SUM(K25:M27*$AD$38:$AF$40)) -> 0 | AS55: =MAX(0,SUM(L25:N27*$AD$38:$AF$40)) -> 0.01176470518 | AT55: =MAX(0,SUM(M25:O27*$AD$38:$AF$40)) -> 0 | AU55: =MAX(0,SUM(N25:P27*$AD$38:$AF$40)) -> 0.01176470518 | AV55: =MAX(0,SUM(O25:Q27*$AD$38:$AF$40)) -> 0.1999999881 | AW55: =MAX(0,SUM(P25:R27*$AD$38:$AF$40)) -> 0.2156863213 | AX55: =MAX(0,SUM(Q25:S27*$AD$38:$AF$40)) -> 0 | AY55: =MAX(0,SUM(R25:T27*$AD$38:$AF$40)) -> 0.2941176295 | AZ55: =MAX(0,SUM(S25:U27*$AD$38:$AF$40)) -> 1.152941227 | BA55: =MAX(0,SUM(T25:V27*$AD$38:$AF$40)) -> 2.443137407 | BB55: =MAX(0,SUM(U25:W27*$AD$38:$AF$40)) -> 1.835294247 | BC55: =MAX(0,SUM(V25:X27*$AD$38:$AF$40)) -> 0 | BD55: =MAX(0,SUM(W25:Y27*$AD$38:$AF$40)) -> 0 | BE55: =MAX(0,SUM(X25:Z27*$AD$38:$AF$40)) -> 0 | BF55: =MAX(0,SUM(Y25:AA27*$AD$38:$AF$40)) -> 0 | BG55: =MAX(0,SUM(Z25:AB27*$AD$38:$AF$40)) -> 0
AH56: =MAX(0,SUM(A26:C28*$AD$38:$AF$40)) -> 0 | AI56: =MAX(0,SUM(B26:D28*$AD$38:$AF$40)) -> 0 | AJ56: =MAX(0,SUM(C26:E28*$AD$38:$AF$40)) -> 0 | AK56: =MAX(0,SUM(D26:F28*$AD$38:$AF$40)) -> 0.3098039329 | AL56: =MAX(0,SUM(E26:G28*$AD$38:$AF$40)) -> 0.05098039657 | AM56: =MAX(0,SUM(F26:H28*$AD$38:$AF$40)) -> 0 | AN56: =MAX(0,SUM(G26:I28*$AD$38:$AF$40)) -> 0 | AO56: =MAX(0,SUM(H26:J28*$AD$38:$AF$40)) -> 0 | AP56: =MAX(0,SUM(I26:K28*$AD$38:$AF$40)) -> 0 | AQ56: =MAX(0,SUM(J26:L28*$AD$38:$AF$40)) -> 0 | AR56: =MAX(0,SUM(K26:M28*$AD$38:$AF$40)) -> 0 | AS56: =MAX(0,SUM(L26:N28*$AD$38:$AF$40)) -> 0 | AT56: =MAX(0,SUM(M26:O28*$AD$38:$AF$40)) -> 0 | AU56: =MAX(0,SUM(N26:P28*$AD$38:$AF$40)) -> 0 | AV56: =MAX(0,SUM(O26:Q28*$AD$38:$AF$40)) -> 0.1254901886 | AW56: =MAX(0,SUM(P26:R28*$AD$38:$AF$40)) -> 0 | AX56: =MAX(0,SUM(Q26:S28*$AD$38:$AF$40)) -> 0 | AY56: =MAX(0,SUM(R26:T28*$AD$38:$AF$40)) -> 0.5450980663 | AZ56: =MAX(0,SUM(S26:U28*$AD$38:$AF$40)) -> 1.074509859 | BA56: =MAX(0,SUM(T26:V28*$AD$38:$AF$40)) -> 1.447058916 | BB56: =MAX(0,SUM(U26:W28*$AD$38:$AF$40)) -> 0.9176471233 | BC56: =MAX(0,SUM(V26:X28*$AD$38:$AF$40)) -> 0 | BD56: =MAX(0,SUM(W26:Y28*$AD$38:$AF$40)) -> 0 | BE56: =MAX(0,SUM(X26:Z28*$AD$38:$AF$40)) -> 0 | BF56: =MAX(0,SUM(Y26:AA28*$AD$38:$AF$40)) -> 0 | BG56: =MAX(0,SUM(Z26:AB28*$AD$38:$AF$40)) -> 0
AH57: =MAX(0,SUM(A27:C29*$AD$38:$AF$40)) -> 0 | AI57: =MAX(0,SUM(B27:D29*$AD$38:$AF$40)) -> 0 | AJ57: =MAX(0,SUM(C27:E29*$AD$38:$AF$40)) -> 0 | AK57: =MAX(0,SUM(D27:F29*$AD$38:$AF$40)) -> 0.3215686381 | AL57: =MAX(0,SUM(E27:G29*$AD$38:$AF$40)) -> 0.05098039657 | AM57: =MAX(0,SUM(F27:H29*$AD$38:$AF$40)) -> 0 | AN57: =MAX(0,SUM(G27:I29*$AD$38:$AF$40)) -> 0 | AO57: =MAX(0,SUM(H27:J29*$AD$38:$AF$40)) -> 0 | AP57: =MAX(0,SUM(I27:K29*$AD$38:$AF$40)) -> 0 | AQ57: =MAX(0,SUM(J27:L29*$AD$38:$AF$40)) -> 0 | AR57: =MAX(0,SUM(K27:M29*$AD$38:$AF$40)) -> 0 | AS57: =MAX(0,SUM(L27:N29*$AD$38:$AF$40)) -> 0 | AT57: =MAX(0,SUM(M27:O29*$AD$38:$AF$40)) -> 0 | AU57: =MAX(0,SUM(N27:P29*$AD$38:$AF$40)) -> 0 | AV57: =MAX(0,SUM(O27:Q29*$AD$38:$AF$40)) -> 0.1254901886 | AW57: =MAX(0,SUM(P27:R29*$AD$38:$AF$40)) -> 0 | AX57: =MAX(0,SUM(Q27:S29*$AD$38:$AF$40)) -> 0 | AY57: =MAX(0,SUM(R27:T29*$AD$38:$AF$40)) -> 0.5450980663 | AZ57: =MAX(0,SUM(S27:U29*$AD$38:$AF$40)) -> 0.9960784912 | BA57: =MAX(0,SUM(T27:V29*$AD$38:$AF$40)) -> 0.4509804249 | BB57: =MAX(0,SUM(U27:W29*$AD$38:$AF$40)) -> 0 | BC57: =MAX(0,SUM(V27:X29*$AD$38:$AF$40)) -> 0 | BD57: =MAX(0,SUM(W27:Y29*$AD$38:$AF$40)) -> 0 | BE57: =MAX(0,SUM(X27:Z29*$AD$38:$AF$40)) -> 0 | BF57: =MAX(0,SUM(Y27:AA29*$AD$38:$AF$40)) -> 0 | BG57: =MAX(0,SUM(Z27:AB29*$AD$38:$AF$40)) -> 0
